Workbook

Sheet Resoluciones (hidden)
A1: Provincia_Entidad_ | B1: Nombre Sector_ | C1: Sector_Agrupado | D1: Número de entidades que publicaron resoluciones_ | E1: Número de resoluciones publicadas | F1: Número de entidades que registraron contrataciones | G1: Número de contrataciones registradas | H1: Año
A2: Azuay | B2: EP de los GAD | C2: GAD y sus EP | D2: 3 | E2: 5 | F2: 1 | G2: 1 | H2: 2021
A3: Azuay | B3: Educación Superior | C3: Gobierno Central y sus EP | D3: 1 | E3: 1 | F3: 1 | G3: 1 | H3: 2021
A4: Azuay | B4: GAD Municipales | C4: GAD y sus EP | D4: 5 | E4: 6 | F4: 2 | G4: 6 | H4: 2021
A5: Azuay | B5: GAD Parroquiales Rurales | C5: GAD y sus EP | D5: 2 | E5: 2 | F5: 1 | G5: 5 | H5: 2021
A6: Azuay | B6: GAD Provinciales | C6: GAD y sus EP | D6: 1 | E6: 1 | H6: 2021
A7: Azuay | B7: Sociedades Anónimas | C7: Otros | D7: 1 | E7: 3 | F7: 1 | G7: 24 | H7: 2021
A8: Bolívar | B8: Seguridad Social | C8: Gobierno Central y sus EP | D8: 1 | E8: 1 | H8: 2021
A9: Carchi | B9: GAD Municipales | C9: GAD y sus EP | D9: 1 | E9: 2 | F9: 1 | G9: 1 | H9: 2021
A10: Cañar | B10: GAD Municipales | C10: GAD y sus EP | D10: 2 | E10: 2 | F10: 1 | G10: 2 | H10: 2021
A11: Cañar | B11: GAD Provinciales | C11: GAD y sus EP | D11: 1 | E11: 1 | F11: 1 | G11: 4 | H11: 2021
A12: Chimborazo | B12: EP de los GAD | C12: GAD y sus EP | F12: 1 | G12: 6 | H12: 2021
A13: Chimborazo | B13: GAD Municipales | C13: GAD y sus EP | D13: 4 | E13: 5 | F13: 2 | G13: 2 | H13: 2021
A14: Chimborazo | B14: GAD Parroquiales Rurales | C14: GAD y sus EP | D14: 2 | E14: 2 | F14: 2 | G14: 3 | H14: 2021
A15: Chimborazo | B15: GAD Provinciales | C15: GAD y sus EP | D15: 1 | E15: 1 | H15: 2021
A16: El Oro | B16: Administración del Estado | C16: Gobierno Central y sus EP | D16: 1 | E16: 1 | H16: 2021
A17: El Oro | B17: EP de los GAD | C17: GAD y sus EP | D17: 2 | E17: 2 | F17: 2 | G17: 7 | H17: 2021
A18: El Oro | B18: GAD Municipales | C18: GAD y sus EP | D18: 5 | E18: 5 | F18: 3 | G18: 4 | H18: 2021
A19: Esmeraldas | B19: Administración del Estado | C19: Gobierno Central y sus EP | D19: 1 | E19: 2 | H19: 2021
A20: Esmeraldas | B20: EP de la Función Ejecutiva | C20: Gobierno Central y sus EP | D20: 1 | E20: 1 | F20: 1 | G20: 1 | H20: 2021
A21: Esmeraldas | B21: GAD Municipales | C21: GAD y sus EP | D21: 2 | E21: 2 | H21: 2021
A22: Guayas | B22: Administración del Estado | C22: Gobierno Central y sus EP | D22: 3 | E22: 4 | F22: 2 | G22: 10 | H22: 2021
A23: Guayas | B23: EP de la Función Ejecutiva | C23: Gobierno Central y sus EP | F23: 1 | G23: 1 | H23: 2021
A24: Guayas | B24: GAD Municipales | C24: GAD y sus EP | D24: 6 | E24: 8 | F24: 2 | G24: 2 | H24: 2021
A25: Guayas | B25: GAD Provinciales | C25: GAD y sus EP | F25: 1 | G25: 1 | H25: 2021
A26: Imbabura | B26: GAD Municipales | C26: GAD y sus EP | D26: 1 | E26: 2 | F26: 1 | G26: 6 | H26: 2021
A27: Loja | B27: GAD Municipales | C27: GAD y sus EP | D27: 6 | E27: 6 | F27: 1 | G27: 10 | H27: 2021
A28: Loja | B28: GAD Parroquiales Rurales | C28: GAD y sus EP | D28: 1 | E28: 1 | H28: 2021
A29: Loja | B29: Sociedades Anónimas | C29: Otros | D29: 1 | E29: 1 | H29: 2021
A30: Los Ríos | B30: GAD Municipales | C30: GAD y sus EP | D30: 2 | E30: 2 | F30: 1 | G30: 1 | H30: 2021
A31: Manabí | B31: Administración del Estado | C31: Gobierno Central y sus EP | D31: 1 | E31: 2 | F31: 1 | G31: 7 | H31: 2021
A32: Manabí | B32: GAD Municipales | C32: GAD y sus EP | D32: 7 | E32: 9 | F32: 3 | G32: 12 | H32: 2021
A33: Manabí | B33: GAD Parroquiales Rurales | C33: GAD y sus EP | D33: 1 | E33: 1 | F33: 1 | G33: 1 | H33: 2021
A34: Morona Santiago | B34: Administración del Estado | C34: Gobierno Central y sus EP | F34: 1 | G34: 3 | H34: 2021
A35: Morona Santiago | B35: GAD Municipales | C35: GAD y sus EP | D35: 3 | E35: 3 | H35: 2021
A36: Morona Santiago | B36: GAD Provinciales | C36: GAD y sus EP | D36: 1 | E36: 1 | H36: 2021
A37: Napo | B37: Administración del Estado | C37: Gobierno Central y sus EP | D37: 1 | E37: 1 | H37: 2021
A38: Napo | B38: GAD Municipales | C38: GAD y sus EP | D38: 1 | E38: 1 | H38: 2021
A39: Napo | B39: GAD Provinciales | C39: GAD y sus EP | D39: 1 | E39: 1 | H39: 2021
A40: Pastaza | B40: GAD Municipales | C40: GAD y sus EP | D40: 1 | E40: 1 | H40: 2021
A41: Pastaza | B41: GAD Parroquiales Rurales | C41: GAD y sus EP | F41: 1 | G41: 1 | H41: 2021
A42: Pichincha | B42: Administración del Estado | C42: Gobierno Central y sus EP | D42: 3 | E42: 6 | F42: 2 | G42: 3 | H42: 2021
A43: Pichincha | B43: EP de los GAD | C43: GAD y sus EP | D43: 1 | E43: 1 | H43: 2021
A44: Pichincha | B44: GAD Provinciales | C44: GAD y sus EP | D44: 1 | E44: 1 | F44: 1 | G44: 1 | H44: 2021
A45: Santa Elena | B45: Administración del Estado | C45: Gobierno Central y sus EP | D45: 1 | E45: 1 | F45: 1 | G45: 5 | H45: 2021
A46: Santa Elena | B46: GAD Provinciales | C46: GAD y sus EP | D46: 1 | E46: 1 | F46: 1 | G46: 1 | H46: 2021
A47: Sucumbíos | B47: GAD Municipales | C47: GAD y sus EP | D47: 2 | E47: 2 | F47: 1 | G47: 2 | H47: 2021
A48: Tungurahua | B48: GAD Municipales | C48: GAD y sus EP | D48: 2 | E48: 2 | F48: 1 | G48: 1 | H48: 2021
A49: Zamora Chinchipe | B49: GAD Municipales | C49: GAD y sus EP | D49: 2 | E49: 2 | F49: 1 | G49: 2 | H49: 2021

Sheet Base (hidden)
A1: Código_Proceso | B1: Descripción CPC_N9 | C1: Tipo_compra | D1: Nombre_Entidad | E1: Provincia_Entidad_ | F1: Razón_Social_Proveedor | G1: Valor_adjudicado | H1: Valor_adjudicado millones | I1: Nombre Sector_ | J1: Nombre Sectorial_ | K1: Sector_Agrupado | L1: Mes
A2: 0004-CAQA-P-GADPRH-2-00001 | B2: TUBOS DE PVC | C2: Bien | D2: GOBIERNO AUTONOMO DESCENTRALIZADO PARROQUIAL RURAL DE HUIGRA | E2: Chimborazo | F2: SANTILLAN CARGUA CLARA NARCIZA | G2: 696.428 | H2: 0.0006964280037 | I2: GAD Parroquiales Rurales | J2: Régimen de GAD | K2: GAD y sus EP | L2: Marzo
A3: 0004-CAQA-P-GADPRH-2-00002 | B3: BOMBAS MULTIPROPOSITO | C3: Bien | D3: GOBIERNO AUTONOMO DESCENTRALIZADO PARROQUIAL RURAL DE HUIGRA | E3: Chimborazo | F3: HERRERA LEMA DARWIN FERNANDO | G3: 299.99 | H3: 0.0002999900025 | I3: GAD Parroquiales Rurales | J3: Régimen de GAD | K3: GAD y sus EP | L3: Abril
A4: 001-2021-00001 | B4: SERVICIO DE VIGILANCIA FISICA CON MEDIO HUMANO, CON ARMA | C4: Servicio | D4: UNIVERSIDAD DE CUENCA | E4: Azuay | F4: CASTVISE CIA LTDA | G4: 251550 | H4: 0.251549989 | I4: Educación Superior | J4: Educación | K4: Gobierno Central y sus EP | L4: Febrero
A5: 001-AD-GADMN-2021-00003 | B5: ALQUILER DE EQUIPO CAMINERO | C5: Servicio | D5: GOBIERNO AUTONOMO DESCENTRALIZADO MUNICIPAL NABON | E5: Azuay | F5: VERDUGO CARRION JOHANNA ESTEFANIA | G5: 3571.2 | H5: 0.003571199952 | I5: GAD Municipales | J5: Régimen de GAD | K5: GAD y sus EP | L5: Abril
A6: 001-AD-GADMN-2021-00004 | B6: SERVICIOS COMERCIALES AL POR MAYOR PRESTADOS A COMISION O POR CONTRATO, DE ARTICULOS DE FERRETERIA | C6: Bien | D6: GOBIERNO AUTONOMO DESCENTRALIZADO MUNICIPAL NABON | E6: Azuay | F6: SARMIENTO JARRIN ANGEL RAMIRO | G6: 16719.35 | H6: 0.01671935059 | I6: GAD Municipales | J6: Régimen de GAD | K6: GAD y sus EP | L6: Mayo
A7: 001-ADM-DEEM-GADPSE-00001 | B7: ALQUILER DE EQUIPO CAMINERO | C7: Servicio | D7: GOBIERNO AUTONOMO DESCENTRALIZADO PROVINCIAL DE SANTA ELENA | E7: Santa Elena | F7: SAENZ RONQUILLO JOSE ANTONIO | G7: 171945 | H7: 0.1719450057 | I7: GAD Provinciales | J7: Régimen de GAD | K7: GAD y sus EP | L7: Abril
A8: 001-GADMP-2021-00001 | B8: OTRAS OBRAS DE INGENIERIA CIVIL | C8: Obra | D8: GOBIERNO AUTONOMO DESCENTRALIZADO MUNICIPAL DE PUTUMAYO | E8: Sucumbíos | F8: MEJIA LOOR FERNANDO BENEFRIDO | G8: 57306.75 | H8: 0.05730675161 | I8: GAD Municipales | J8: Régimen de GAD | K8: GAD y sus EP | L8: Febrero
A9: 001-GADMP-2021-00002 | B9: SERVICIOS DE DISENO DE INGENIERIA PARA OBRAS DE IRRIGACION | C9: Consultoría | D9: GOBIERNO AUTONOMO DESCENTRALIZADO MUNICIPAL DE PUTUMAYO | E9: Sucumbíos | F9: CONSTRUFISCA S.A. | G9: 157146.12 | H9: 0.157146126 | I9: GAD Municipales | J9: Régimen de GAD | K9: GAD y sus EP | L9: Febrero
A10: 001-IZZ-AGADMCS-2021-00001 | B10: SERVICIOS DE ALQUILER DE EQUIPO CON O SIN OPCION DE COMPRA DE EQUIPOS PARA LA CONSTRUCCION O DEMOLICION DE EDIFICIOS PARA TRABAJOS DE INGENIERIA CIVIL CON OPERARIOS Y SERVICIOS OPERATIVOS PROPORCIONADOS POR LOS MISMOS | C10: Servicio | D10: GOBIERNO AUTONOMO DESCENTRALIZADO MUNICIPAL DEL CANTON SUCRE | E10: Manabí | F10: CONSTRUCIONES Y TRANSPORTE SUCRE SUCRETRANSCON S.A. | G10: 32400 | H10: 0.03240000084 | I10: GAD Municipales | J10: Régimen de GAD | K10: GAD y sus EP | L10: Abril
A11: 001-IZZ-AGADMCS-2021-00002 | B11: OTRAS OBRAS DE INGENIERIA CIVIL | C11: Obra | D11: GOBIERNO AUTONOMO DESCENTRALIZADO MUNICIPAL DEL CANTON SUCRE | E11: Manabí | F11: CHINGA PANTA CARLOS ANIBAL | G11: 72319.27 | H11: 0.07231926918 | I11: GAD Municipales | J11: Régimen de GAD | K11: GAD y sus EP | L11: Abril
A12: 001-JPC-G-EMAPASI-00001 | B12: OTRAS OBRAS DE INGENIERIA CIVIL | C12: Obra | D12: EMPRESA PÚBLICA MUNICIPAL DE AGUA POTABLE, ALCANTARILLADO, MANEJO FLUVIAL Y DEPURACIÓN DE RESIDUOS LÍQUIDOS DE SANTA ISABEL. | E12: Azuay | F12: VARGAS PINEDA BYRON RODRIGO | G12: 8726.17 | H12: 0.008726170287 | I12: EP de los GAD | J12: Desarrollo Urbano y Vivienda | K12: GAD y sus EP | L12: Marzo
A13: 002-2021-00001 | B13: ALQUILER DE EQUIPO CAMINERO | C13: Servicio | D13: ILUSTRE MUNICIPALIDAD DEL CANTÓN JAMA | E13: Manabí | F13: LUQUE INTRIAGO EFREN ANGEL ALBERTO | G13: 14261.6 | H13: 0.01426159963 | I13: GAD Municipales | J13: Régimen de GAD | K13: GAD y sus EP | L13: Marzo
A14: 002-2021-00002 | B14: ALQUILER DE EQUIPO CAMINERO | C14: Servicio | D14: ILUSTRE MUNICIPALIDAD DEL CANTÓN JAMA | E14: Manabí | F14: GARCIA GARCIA JORGE ALFREDO | G14: 41477.64 | H14: 0.04147763923 | I14: GAD Municipales | J14: Régimen de GAD | K14: GAD y sus EP | L14: Marzo
A15: 0023-AC-GADCA-2021-00001 | B15: ABRAZADERA UNIVERSAL | C15: Bien | D15: GOBIERNO AUTONOMO DESCENTRALIZADO DEL CANTON ATAHUALPA | E15: El Oro | F15: COMERCIAL APOLO PONTON C. LTDA. | G15: 100.5 | H15: 0.0001005000013 | I15: GAD Municipales | J15: Régimen de GAD | K15: GAD y sus EP | L15: Marzo
A16: 0023-AC-GADCA-2021-00001 | B16: CODO PARA USO EN TUBOS SANITARIA | C16: Bien | D16: GOBIERNO AUTONOMO DESCENTRALIZADO DEL CANTON ATAHUALPA | E16: El Oro | F16: COMERCIAL APOLO PONTON C. LTDA. | G16: 250 | H16: 0.0002500000119 | I16: GAD Municipales | J16: Régimen de GAD | K16: GAD y sus EP | L16: Marzo
A17: 0023-AC-GADCA-2021-00001 | B17: GAVION DE ALAMBRE DE ACERO GALVANIZADO | C17: Bien | D17: GOBIERNO AUTONOMO DESCENTRALIZADO DEL CANTON ATAHUALPA | E17: El Oro | F17: COMERCIAL APOLO PONTON C. LTDA. | G17: 1774.5 | H17: 0.001774500008 | I17: GAD Municipales | J17: Régimen de GAD | K17: GAD y sus EP | L17: Marzo
A18: 0023-AC-GADCA-2021-00001 | B18: MANGUERAS DE PROPILENO | C18: Bien | D18: GOBIERNO AUTONOMO DESCENTRALIZADO DEL CANTON ATAHUALPA | E18: El Oro | F18: COMERCIAL APOLO PONTON C. LTDA. | G18: 2950 | H18: 0.002950000111 | I18: GAD Municipales | J18: Régimen de GAD | K18: GAD y sus EP | L18: Marzo
A19: 0023-AC-GADCA-2021-00001 | B19: OTROS ACCESORIOS PARA TUBOS O CANOS, DE HIERRO O ACERO INOXIDABLE: COLLARES. | C19: Bien | D19: GOBIERNO AUTONOMO DESCENTRALIZADO DEL CANTON ATAHUALPA | E19: El Oro | F19: COMERCIAL APOLO PONTON C. LTDA. | G19: 20.76 | H19: 2.076000055e-05 | I19: GAD Municipales | J19: Régimen de GAD | K19: GAD y sus EP | L19: Marzo
A20: 0023-AC-GADCA-2021-00001 | B20: SERVICIOS COMERCIALES AL POR MAYOR PRESTADOS A COMISION O POR CONTRATO, DE ARTICULOS DE FERRETERIA | C20: Bien | D20: GOBIERNO AUTONOMO DESCENTRALIZADO DEL CANTON ATAHUALPA | E20: El Oro | F20: COMERCIAL APOLO PONTON C. LTDA. | G20: 860.72 | H20: 0.0008607199998 | I20: GAD Municipales | J20: Régimen de GAD | K20: GAD y sus EP | L20: Marzo
A21: 0023-AC-GADCA-2021-00001 | B21: TEES PARA USO EN TUBOS DE SANITARIA EN PVC | C21: Bien | D21: GOBIERNO AUTONOMO DESCENTRALIZADO DEL CANTON ATAHUALPA | E21: El Oro | F21: COMERCIAL APOLO PONTON C. LTDA. | G21: 50 | H21: 4.999999874e-05 | I21: GAD Municipales | J21: Régimen de GAD | K21: GAD y sus EP | L21: Marzo
A22: 0023-AC-GADCA-2021-00001 | B22: TUBOS DE POLIETILENO | C22: Bien | D22: GOBIERNO AUTONOMO DESCENTRALIZADO DEL CANTON ATAHUALPA | E22: El Oro | F22: COMERCIAL APOLO PONTON C. LTDA. | G22: 1276.8 | H22: 0.001276799943 | I22: GAD Municipales | J22: Régimen de GAD | K22: GAD y sus EP | L22: Marzo
A23: 0023-AC-GADCA-2021-00001 | B23: TUBOS DE PVC | C23: Bien | D23: GOBIERNO AUTONOMO DESCENTRALIZADO DEL CANTON ATAHUALPA | E23: El Oro | F23: COMERCIAL APOLO PONTON C. LTDA. | G23: 662.94 | H23: 0.0006629399722 | I23: GAD Municipales | J23: Régimen de GAD | K23: GAD y sus EP | L23: Marzo
A24: 0023-AC-GADCA-2021-00001 | B24: UNION PARA TUBOS DE USO AGRICOLA EN PVC | C24: Bien | D24: GOBIERNO AUTONOMO DESCENTRALIZADO DEL CANTON ATAHUALPA | E24: El Oro | F24: COMERCIAL APOLO PONTON C. LTDA. | G24: 71.36 | H24: 7.136000204e-05 | I24: GAD Municipales | J24: Régimen de GAD | K24: GAD y sus EP | L24: Marzo
A25: 002GADPSJP2020-00003 | B25: RACIONES ALIMENTICIAS PREPARADAS PARA SITUACIONES DE EMERGENCIA | C25: Bien | D25: GOBIERNO AUTONOMO DESCENTRALIZADO PARROQUIAL RURAL SAN JOSÉ | E25: Pastaza | F25: PAUCAR LAMAR CLAUDIA MARICELA | G25: 6416.14 | H25: 0.006416140124 | I25: GAD Parroquiales Rurales | J25: Régimen de GAD | K25: GAD y sus EP | L25: Marzo
A26: 003-AL-2021-00001 | B26: OTRAS OBRAS DE INGENIERIA CIVIL | C26: Obra | D26: MUNICIPIO DE LOJA | E26: Loja | F26: CABRERA LOAYZA BRUNO ENRIQUE | G26: 44774.83 | H26: 0.04477483034 | I26: GAD Municipales | J26: Régimen de GAD | K26: GAD y sus EP | L26: Abril
A27: 003-AL-2021-00002 | B27: OTRAS OBRAS DE INGENIERIA CIVIL | C27: Bien | D27: MUNICIPIO DE LOJA | E27: Loja | F27: CAJAMARCA MENDOZA PATRICIO FERNANDO | G27: 80533.78 | H27: 0.08053378016 | I27: GAD Municipales | J27: Régimen de GAD | K27: GAD y sus EP | L27: Abril
A28: 003-AL-2021-00003 | B28: OTRAS OBRAS DE INGENIERIA CIVIL | C28: Obra | D28: MUNICIPIO DE LOJA | E28: Loja | F28: VELEPUCHA GUZMAN HOMERO ALCIVAR | G28: 52299.66 | H28: 0.0522996597 | I28: GAD Municipales | J28: Régimen de GAD | K28: GAD y sus EP | L28: Abril
A29: 003-AL-2021-00004 | B29: OTRAS OBRAS DE INGENIERIA CIVIL | C29: Obra | D29: MUNICIPIO DE LOJA | E29: Loja | F29: CONSTRUCTORA ZUÑIGA CONZU CIA.LTDA. | G29: 176524.26 | H29: 0.1765242666 | I29: GAD Municipales | J29: Régimen de GAD | K29: GAD y sus EP | L29: Abril
A30: 003-AL-2021-00005 | B30: OTRAS OBRAS DE INGENIERIA CIVIL | C30: Obra | D30: MUNICIPIO DE LOJA | E30: Loja | F30: CONSTRUCTORA RAMIRO HIDALGO RHT CIA LTDA | G30: 94011.84 | H30: 0.0940118432 | I30: GAD Municipales | J30: Régimen de GAD | K30: GAD y sus EP | L30: Mayo
A31: 003-AL-2021-00006 | B31: OTRAS OBRAS DE INGENIERIA CIVIL | C31: Obra | D31: MUNICIPIO DE LOJA | E31: Loja | F31: BLACIO AGUIRRE RICHARD HENRY | G31: 236672.26 | H31: 0.2366722673 | I31: GAD Municipales | J31: Régimen de GAD | K31: GAD y sus EP | L31: Mayo
A32: 003-AL-2021-00007 | B32: OTRAS OBRAS DE INGENIERIA CIVIL | C32: Obra | D32: MUNICIPIO DE LOJA | E32: Loja | F32: BENAVIDES PEREZ DAVID ANDRES | G32: 235786.25 | H32: 0.2357862443 | I32: GAD Municipales | J32: Régimen de GAD | K32: GAD y sus EP | L32: Mayo
A33: 003-AL-2021-00008 | B33: OTRAS OBRAS DE INGENIERIA CIVIL | C33: Obra | D33: MUNICIPIO DE LOJA | E33: Loja | F33: JARAMILLO CASTILLO LUIS ENRIQUE | G33: 191406.67 | H33: 0.1914066672 | I33: GAD Municipales | J33: Régimen de GAD | K33: GAD y sus EP | L33: Mayo
A34: 003-AL-2021-00009 | B34: OTRAS OBRAS DE INGENIERIA CIVIL | C34: Obra | D34: MUNICIPIO DE LOJA | E34: Loja | F34: MONTOYA CARRION VICTOR MEDARDO | G34: 43710.99 | H34: 0.04371099174 | I34: GAD Municipales | J34: Régimen de GAD | K34: GAD y sus EP | L34: Mayo
A35: 003-AL-2021-00010 | B35: OTRAS OBRAS DE INGENIERIA CIVIL | C35: Obra | D35: MUNICIPIO DE LOJA | E35: Loja | F35: QUIÑONEZ PABLO ANIBAL | G35: 90904.33 | H35: 0.0909043327 | I35: GAD Municipales | J35: Régimen de GAD | K35: GAD y sus EP | L35: Mayo
A36: 003-P-GADPC-2021-00001 | B36: COMPLEJO B AMPOLLA X 10 ML | C36: Bien | D36: GOBIERNO AUTONOMO DESCENTRALIZADO PARROQUIAL RURAL DE CEBADAS | E36: Chimborazo | F36: LABORATORIO VETERINARIO ECUATORIANO CIA LTDA. | G36: 2762 | H36: 0.002762000076 | I36: GAD Parroquiales Rurales | J36: Régimen de GAD | K36: GAD y sus EP | L36: Marzo
A37: 003-P-GADPC-2021-00001 | B37: JERINGAS,AGUJAS,CATETERES,CANULAS Y ARTICULOS ANALOGOS, AGUJAS TUBULARES DE METAL Y AGUJAS DE SUTURA | C37: Bien | D37: GOBIERNO AUTONOMO DESCENTRALIZADO PARROQUIAL RURAL DE CEBADAS | E37: Chimborazo | F37: LABORATORIO VETERINARIO ECUATORIANO CIA LTDA. | G37: 140 | H37: 0.0001400000037 | I37: GAD Parroquiales Rurales | J37: Régimen de GAD | K37: GAD y sus EP | L37: Marzo
A38: 008-A-GADM-CG-2021-00001 | B38: OTRAS OBRAS DE INGENIERIA CIVIL | C38: Obra | D38: GOBIERNO AUTONOMO DESCENTRALIZADO MUNICIPAL DEL CANTON GUANO | E38: Chimborazo | F38: HERRERA RODRIGUEZ CRISTIAN RODNEY | G38: 37790.79 | H38: 0.0377907902 | I38: GAD Municipales | J38: Régimen de GAD | K38: GAD y sus EP | L38: Marzo
A39: 008-EMAPASR-EP-GG-21-00001 | B39: SERVICIOS DE ENSAYO Y ANALISIS DE LAS PROPIEDADES QUIMICAS Y BIOLOGICAS DEL AGUA | C39: Servicio | D39: EMPRESA PUBLICA DE AGUA POTABLE Y ALCANTARILLADO DEL CANTON SANTA ROSA EMAPASR-EP | E39: El Oro | F39: GRUPO QUIMICO MARCOS C. LTDA GRUQUIMAR | G39: 7187 | H39: 0.00718700001 | I39: EP de los GAD | J39: Desarrollo Urbano y Vivienda | K39: GAD y sus EP | L39: Febrero
A40: 01-E-GADMP-2021-00001 | B40: SERVICIOS COMERCIALES AL POR MENOR DE GRANOS, SEMILLAS Y FRUTAS OLEAGINOSAS, SEMILLAS Y FORRAJES (ALIMENTO PARA ANIMALES) EN TIENDAS NO ESPECIALIZADAS | C40: Bien | D40: GOBIERNO AUTONOMO DESCENTRALIZADO MUNICIPAL DE PALLATANGA | E40: Chimborazo | F40: GUERRERO ARCAS MARIO ANDRES | G40: 4350 | H40: 0.004350000061 | I40: GAD Municipales | J40: Régimen de GAD | K40: GAD y sus EP | L40: Abril
A41: 011-GADMEG-2021-00001 | B41: OTRAS OBRAS DE INGENIERIA CIVIL | C41: Obra | D41: GOBIERNO AUTONOMO DESCENTRALIZADO MUNICIPAL DE EL GUABO | E41: El Oro | F41: PONTON DAVILA WILLIAM DANIEL | G41: 142142.8 | H41: 0.1421428025 | I41: GAD Municipales | J41: Régimen de GAD | K41: GAD y sus EP | L41: Mayo
A42: 016-GADMCCH-A-2021-00002 | B42: ALAMBRE DE ACERO GALVANIZADO CLASE REGULAR RESISTENCIA NORMAL DIAMETRO 5.2 MM | C42: Bien | D42: GOBIERNO AUTONOMO DESCENTRALIZADO MUNICIPAL DEL CANTON CHINCHIPE | E42: Zamora Chinchipe | F42: FERRETERIA GARCIA | G42: 60 | H42: 5.999999848e-05 | I42: GAD Municipales | J42: Régimen de GAD | K42: GAD y sus EP | L42: Febrero
A43: 016-GADMCCH-A-2021-00002 | B43: BRAMANTES (HILOS GRUESOS), CORDELES (HILOS DE UN SOLO CABO DELGADOS), CUERDAS Y CORDAJES DE FIBRAS VEGETALES, SEAN O NO IMPREGNADOS, BANADOS O RECUBIERTOS CON CAUCHO O PLASTICO U OTROS MATERIALES | C43: Bien | D43: GOBIERNO AUTONOMO DESCENTRALIZADO MUNICIPAL DEL CANTON CHINCHIPE | E43: Zamora Chinchipe | F43: FERRETERIA GARCIA | G43: 2 | H43: 1.999999995e-06 | I43: GAD Municipales | J43: Régimen de GAD | K43: GAD y sus EP | L43: Febrero
A44: 016-GADMCCH-A-2021-00002 | B44: CEMENTO PORTLAND O GRIS: CEMENTO BLANCO, COLOREADO ARTIFICIALMENTE O NO | C44: Bien | D44: GOBIERNO AUTONOMO DESCENTRALIZADO MUNICIPAL DEL CANTON CHINCHIPE | E44: Zamora Chinchipe | F44: FERRETERIA GARCIA | G44: 127.5 | H44: 0.0001274999959 | I44: GAD Municipales | J44: Régimen de GAD | K44: GAD y sus EP | L44: Febrero
A45: 016-GADMCCH-A-2021-00002 | B45: POLIPROPILENO: BLOQUES Y FORMAS SIMILARES, A GRANEL, COMPUESTO DE EXTRUSION, COPOS, GRANULOS, MASAS, POLVOS, RESINAS, ETC. | C45: Bien | D45: GOBIERNO AUTONOMO DESCENTRALIZADO MUNICIPAL DEL CANTON CHINCHIPE | E45: Zamora Chinchipe | F45: FERRETERIA GARCIA | G45: 18 | H45: 1.800000064e-05 | I45: GAD Municipales | J45: Régimen de GAD | K45: GAD y sus EP | L45: Febrero
A46: 016-GADMCCH-A-2021-00002 | B46: TUBOS DE PVC | C46: Bien | D46: GOBIERNO AUTONOMO DESCENTRALIZADO MUNICIPAL DEL CANTON CHINCHIPE | E46: Zamora Chinchipe | F46: FERRETERIA GARCIA | G46: 750 | H46: 0.0007500000065 | I46: GAD Municipales | J46: Régimen de GAD | K46: GAD y sus EP | L46: Febrero
A47: 016-GADMCCH-A-2021-00002 | B47: UNION PARA TUBOS DE ACUEDUCTO EN PVC | C47: Bien | D47: GOBIERNO AUTONOMO DESCENTRALIZADO MUNICIPAL DEL CANTON CHINCHIPE | E47: Zamora Chinchipe | F47: FERRETERIA GARCIA | G47: 390 | H47: 0.0003900000011 | I47: GAD Municipales | J47: Régimen de GAD | K47: GAD y sus EP | L47: Febrero
A48: 016-GADMCCH-A-2021-00003 | B48: ALAMBRE DE ACERO GALVANIZADO CLASE REGULAR RESISTENCIA NORMAL DIAMETRO 0.9 MM | C48: Bien | D48: GOBIERNO AUTONOMO DESCENTRALIZADO MUNICIPAL DEL CANTON CHINCHIPE | E48: Zamora Chinchipe | F48: ERAZO AGUIRRE FREDDY GONZALO | G48: 1194 | H48: 0.001194000011 | I48: GAD Municipales | J48: Régimen de GAD | K48: GAD y sus EP | L48: Febrero
A49: 016-GADMCCH-A-2021-00003 | B49: CANOS DE PVC | C49: Bien | D49: GOBIERNO AUTONOMO DESCENTRALIZADO MUNICIPAL DEL CANTON CHINCHIPE | E49: Zamora Chinchipe | F49: ERAZO AGUIRRE FREDDY GONZALO | G49: 253.7 | H49: 0.0002537000109 | I49: GAD Municipales | J49: Régimen de GAD | K49: GAD y sus EP | L49: Febrero
A50: 016-GADMCCH-A-2021-00003 | B50: GRILLETE CON UN ACABADO EN GALVANIZADO | C50: Bien | D50: GOBIERNO AUTONOMO DESCENTRALIZADO MUNICIPAL DEL CANTON CHINCHIPE | E50: Zamora Chinchipe | F50: ERAZO AGUIRRE FREDDY GONZALO | G50: 390 | H50: 0.0003900000011 | I50: GAD Municipales | J50: Régimen de GAD | K50: GAD y sus EP | L50: Febrero
A51: 016-GADMCCH-A-2021-00003 | B51: PAÑO DE LIMPIEZA MULTIUSO | C51: Bien | D51: GOBIERNO AUTONOMO DESCENTRALIZADO MUNICIPAL DEL CANTON CHINCHIPE | E51: Zamora Chinchipe | F51: ERAZO AGUIRRE FREDDY GONZALO | G51: 37.5 | H51: 3.750000178e-05 | I51: GAD Municipales | J51: Régimen de GAD | K51: GAD y sus EP | L51: Febrero
A52: 016-GADMCCH-A-2021-00003 | B52: PEGANTE INSTANTANEO | C52: Bien | D52: GOBIERNO AUTONOMO DESCENTRALIZADO MUNICIPAL DEL CANTON CHINCHIPE | E52: Zamora Chinchipe | F52: ERAZO AGUIRRE FREDDY GONZALO | G52: 207.5 | H52: 0.0002074999938 | I52: GAD Municipales | J52: Régimen de GAD | K52: GAD y sus EP | L52: Febrero
A53: 016-GADMCCH-A-2021-00003 | B53: SERVICIOS COMERCIALES AL POR MENOR DE PRODUCTOS DE LIMPIEZA EN TIENDAS ESPECIALIZADAS | C53: Bien | D53: GOBIERNO AUTONOMO DESCENTRALIZADO MUNICIPAL DEL CANTON CHINCHIPE | E53: Zamora Chinchipe | F53: ERAZO AGUIRRE FREDDY GONZALO | G53: 76.25 | H53: 7.624999853e-05 | I53: GAD Municipales | J53: Régimen de GAD | K53: GAD y sus EP | L53: Febrero
A54: 016-GADMCCH-A-2021-00003 | B54: TUBOS DE PVC | C54: Bien | D54: GOBIERNO AUTONOMO DESCENTRALIZADO MUNICIPAL DEL CANTON CHINCHIPE | E54: Zamora Chinchipe | F54: ERAZO AGUIRRE FREDDY GONZALO | G54: 4352.1 | H54: 0.004352100194 | I54: GAD Municipales | J54: Régimen de GAD | K54: GAD y sus EP | L54: Febrero
A55: 016-GADMCCH-A-2021-00003 | B55: UNION PARA TUBOS DE ACUEDUCTO EN PVC | C55: Bien | D55: GOBIERNO AUTONOMO DESCENTRALIZADO MUNICIPAL DEL CANTON CHINCHIPE | E55: Zamora Chinchipe | F55: ERAZO AGUIRRE FREDDY GONZALO | G55: 403.1 | H55: 0.0004031000135 | I55: GAD Municipales | J55: Régimen de GAD | K55: GAD y sus EP | L55: Febrero
A56: 055-2021-00001 | B56: OXIGENO LIQUIDO | C56: Bien | D56: HOSPITAL GENERAL DR. LIBORIO PANCHANA SOTOMAYOR | E56: Santa Elena | F56: LINDE ECUADOR S.A. | G56: 147490 | H56: 0.1474899948 | I56: Administración del Estado | J56: Salud | K56: Gobierno Central y sus EP | L56: Mayo
A57: 055-2021-00001 | B57: OXÍGENO MEDICINAL | C57: Bien | D57: HOSPITAL GENERAL DR. LIBORIO PANCHANA SOTOMAYOR | E57: Santa Elena | F57: LINDE ECUADOR S.A. | G57: 22960 | H57: 0.02295999974 | I57: Administración del Estado | J57: Salud | K57: Gobierno Central y sus EP | L57: Mayo
A58: 055-2021-00002 | B58: PROPOFOL - LÍQUIDO PARENTERAL- 10 MG/ML | C58: Bien | D58: HOSPITAL GENERAL DR. LIBORIO PANCHANA SOTOMAYOR | E58: Santa Elena | F58: MEDICANTES S.A. | G58: 112000 | H58: 0.1120000035 | I58: Administración del Estado | J58: Salud | K58: Gobierno Central y sus EP | L58: Mayo
A59: 055-2021-00002 | B59: ROCURONIO, BROMURO - LÍQUIDO PARENTERAL- 10 MG/ML | C59: Bien | D59: HOSPITAL GENERAL DR. LIBORIO PANCHANA SOTOMAYOR | E59: Santa Elena | F59: MEDICANTES S.A. | G59: 140000 | H59: 0.1400000006 | I59: Administración del Estado | J59: Salud | K59: Gobierno Central y sus EP | L59: Mayo
A60: 055-2021-00003 | B60: INSUMOS DE USO GENERAL | C60: Bien | D60: HOSPITAL GENERAL DR. LIBORIO PANCHANA SOTOMAYOR | E60: Santa Elena | F60: PROAÑO FIERRO MARIA RITTA | G60: 196024.96 | H60: 0.1960249543 | I60: Administración del Estado | J60: Salud | K60: Gobierno Central y sus EP | L60: Mayo
A61: 055-2021-00005 | B61: REACTIVOS PARA ANALISIS CELULAR | C61: Bien | D61: HOSPITAL GENERAL DR. LIBORIO PANCHANA SOTOMAYOR | E61: Santa Elena | F61: IMPORTADORA DISTRIBUIDORA MAKOLECUADOR CIA. LTDA. | G61: 90444.7 | H61: 0.09044469893 | I61: Administración del Estado | J61: Salud | K61: Gobierno Central y sus EP | L61: Mayo
A62: 055-2021-00010 | B62: REACTIVOS PARA ANALISIS CELULAR | C62: Bien | D62: HOSPITAL GENERAL DR. LIBORIO PANCHANA SOTOMAYOR | E62: Santa Elena | F62: MEDIBAC-INC S.A. | G62: 80020 | H62: 0.08002000302 | I62: Administración del Estado | J62: Salud | K62: Gobierno Central y sus EP | L62: Mayo
A63: 062-00001 | B63: SERVICIOS DE ALQUILER DE EQUIPO CON O SIN OPCION DE COMPRA DE EQUIPOS PARA LA CONSTRUCCION O DEMOLICION DE EDIFICIOS PARA TRABAJOS DE INGENIERIA CIVIL CON OPERARIOS Y SERVICIOS OPERATIVOS PROPORCIONADOS POR LOS MISMOS | C63: Servicio | D63: GAD MUNICIPAL DE AZOGUES | E63: Cañar | F63: TENEZACA BRAVO TELMO ABSALON | G63: 10000 | H63: 0.009999999776 | I63: GAD Municipales | J63: Régimen de GAD | K63: GAD y sus EP | L63: Marzo
A64: 062-00002 | B64: PIEDRA PARTIDA O TRITURADA | C64: Bien | D64: GAD MUNICIPAL DE AZOGUES | E64: Cañar | F64: CALLE CORDERO SEGUNDO FERNANDO | G64: 16000 | H64: 0.01600000076 | I64: GAD Municipales | J64: Régimen de GAD | K64: GAD y sus EP | L64: Mayo
A65: 158-A-GADMCH-2020-00001 | B65: TUBERIAS PARA EL TRANSPORTE DE AGUA | C65: Bien | D65: GOBIERNO AUTONOMO DESCENTRALIZADO MUNICIPAL DE CHORDELEG | E65: Azuay | F65: VAZQUEZ VERA MARIA CRISTINA | G65: 10099 | H65: 0.0100990003 | I65: GAD Municipales | J65: Régimen de GAD | K65: GAD y sus EP | L65: Febrero
A66: 158-A-GADMCH-2020-00003 | B66: OTROS SERVICIOS DE ALQUILER RELATIVOS A EXCAVADORAS | C66: Servicio | D66: GOBIERNO AUTONOMO DESCENTRALIZADO MUNICIPAL DE CHORDELEG | E66: Azuay | F66: NEIRA PATIÑO CESAR OSWALDO | G66: 920 | H66: 0.0009200000204 | I66: GAD Municipales | J66: Régimen de GAD | K66: GAD y sus EP | L66: Febrero
A67: 158-A-GADMCH-2020-00004 | B67: OTROS SERVICIOS DE ALQUILER RELATIVOS A EXCAVADORAS | C67: Servicio | D67: GOBIERNO AUTONOMO DESCENTRALIZADO MUNICIPAL DE CHORDELEG | E67: Azuay | F67: SOCIEDAD MINERA GUALACEO S.A. SOMIGU | G67: 5807 | H67: 0.005807000212 | I67: GAD Municipales | J67: Régimen de GAD | K67: GAD y sus EP | L67: Febrero
A68: 158-A-GADMCH-2020-00005 | B68: CONSTRUCCION DE OBRAS DE PROTECCION DE MARGENES DE RIOS | C68: Servicio | D68: GOBIERNO AUTONOMO DESCENTRALIZADO MUNICIPAL DE CHORDELEG | E68: Azuay | F68: PINGUIL ZHUMI SEGUNDO FRANCISCO | G68: 1450 | H68: 0.001449999982 | I68: GAD Municipales | J68: Régimen de GAD | K68: GAD y sus EP | L68: Febrero
A69: 2021-0045-00001 | B69: SERVICIOS GENERALES DE CONSTRUCCION EN CARRETERAS (EXCEPTO CARRETERAS SOBREELEVADAS), CAMINOS | C69: Obra | D69: ELECTRO GENERADORA DEL AUSTRO S.A. | E69: Azuay | F69: GUEVAZCO COMPAÑIA LIMITADA | G69: 178496 | H69: 0.1784960032 | I69: Sociedades Anónimas | J69: Recursos Naturales | K69: Otros | L69: Marzo
A70: 2021-0045-00002 | B70: BOMBA DE VACIO DE ABSORCION | C70: Bien | D70: ELECTRO GENERADORA DEL AUSTRO S.A. | E70: Azuay | F70: AGRO - SISTEMRIEGO CIA. LTDA. | G70: 495 | H70: 0.0004949999857 | I70: Sociedades Anónimas | J70: Recursos Naturales | K70: Otros | L70: Marzo
A71: 2021-0045-00002 | B71: MANGO DE METAL PLASTIFICADO PARA ESCOBA | C71: Bien | D71: ELECTRO GENERADORA DEL AUSTRO S.A. | E71: Azuay | F71: AGRO - SISTEMRIEGO CIA. LTDA. | G71: 62.72 | H71: 6.271999882e-05 | I71: Sociedades Anónimas | J71: Recursos Naturales | K71: Otros | L71: Marzo
A72: 2021-0045-00002 | B72: MANGUERA CORRUGADA | C72: Bien | D72: ELECTRO GENERADORA DEL AUSTRO S.A. | E72: Azuay | F72: AGRO - SISTEMRIEGO CIA. LTDA. | G72: 52.52 | H72: 5.252000119e-05 | I72: Sociedades Anónimas | J72: Recursos Naturales | K72: Otros | L72: Marzo
A73: 2021-0045-00002 | B73: VARILLAS DE ASPIRADOR | C73: Bien | D73: ELECTRO GENERADORA DEL AUSTRO S.A. | E73: Azuay | F73: AGRO - SISTEMRIEGO CIA. LTDA. | G73: 28 | H73: 2.800000038e-05 | I73: Sociedades Anónimas | J73: Recursos Naturales | K73: Otros | L73: Marzo
A74: 2021-0045-00003 | B74: ABRAZADERA UNIVERSAL | C74: Bien | D74: ELECTRO GENERADORA DEL AUSTRO S.A. | E74: Azuay | F74: COMERCIAL CHAVEZ CUNALATA CH-C CIA. LTDA. | G74: 23.16 | H74: 2.316000064e-05 | I74: Sociedades Anónimas | J74: Recursos Naturales | K74: Otros | L74: Marzo
A75: 2021-0045-00004 | B75: CARRETILLAS | C75: Bien | D75: ELECTRO GENERADORA DEL AUSTRO S.A. | E75: Azuay | F75: VIVAR REINOSO JULIA JENNY | G75: 412.2402 | H75: 0.0004122401879 | I75: Sociedades Anónimas | J75: Recursos Naturales | K75: Otros | L75: Marzo
A76: 2021-0045-00005 | B76: PALAS | C76: Bien | D76: ELECTRO GENERADORA DEL AUSTRO S.A. | E76: Azuay | F76: VIVAR REINOSO JULIA JENNY | G76: 111.9636 | H76: 0.0001119635999 | I76: Sociedades Anónimas | J76: Recursos Naturales | K76: Otros | L76: Marzo
A77: 2021-0045-00006 | B77: ANTIOXIDANTES | C77: Bien | D77: ELECTRO GENERADORA DEL AUSTRO S.A. | E77: Azuay | F77: VIVAR REINOSO JULIA JENNY | G77: 264.88 | H77: 0.0002648799855 | I77: Sociedades Anónimas | J77: Recursos Naturales | K77: Otros | L77: Marzo
A78: 2021-0045-00007 | B78: LUBRICANTES SINTETICOS BASADOS EN ESTERES FOSFORICOS | C78: Bien | D78: ELECTRO GENERADORA DEL AUSTRO S.A. | E78: Azuay | F78: CONAUTO C.A. | G78: 3331.4197 | H78: 0.003331419779 | I78: Sociedades Anónimas | J78: Recursos Naturales | K78: Otros | L78: Marzo
A79: 2021-0045-00008 | B79: HIDROLAVADORA | C79: Bien | D79: ELECTRO GENERADORA DEL AUSTRO S.A. | E79: Azuay | F79: HERAS PARRA GERARDO ROLENDIO | G79: 6270.95 | H79: 0.006270950194 | I79: Sociedades Anónimas | J79: Recursos Naturales | K79: Otros | L79: Marzo
A80: 2021-0045-00009 | B80: LINTERNAS RECARGABLES DE SEGURIDAD | C80: Bien | D80: ELECTRO GENERADORA DEL AUSTRO S.A. | E80: Azuay | F80: COMERCIAL KYWI S.A. | G80: 333.3 | H80: 0.0003333000059 | I80: Sociedades Anónimas | J80: Recursos Naturales | K80: Otros | L80: Marzo
A81: 2021-0045-00010 | B81: ANTIOXIDANTES | C81: Bien | D81: ELECTRO GENERADORA DEL AUSTRO S.A. | E81: Azuay | F81: COMERCIAL KYWI S.A. | G81: 77.3568 | H81: 7.735680265e-05 | I81: Sociedades Anónimas | J81: Recursos Naturales | K81: Otros | L81: Marzo
A82: 2021-0045-00011 | B82: PINTURAS Y BARNICES (INCLUSO ESMALTES Y LACAS) BASADOS EN POLIMEROS SINTETICOS O POLIMEROS NATURALES QUIMICAMENTE MODIFICADOS, DISPERSOS O DISUELTOS EN UN MEDIO NO ACUOSO; PINTURAS ANTICORROSIVAS, PLASTICOS EN DISOLVENTES ORGANICOS VOLATILES,PINTURAS CONT | C82: Bien | D82: ELECTRO GENERADORA DEL AUSTRO S.A. | E82: Azuay | F82: PALACIOS DELGADO JUAN LEONARDO | G82: 578.4 | H82: 0.0005783999804 | I82: Sociedades Anónimas | J82: Recursos Naturales | K82: Otros | L82: Marzo
A83: 2021-0045-00012 | B83: LIMPIA CONTACTOS SECO | C83: Bien | D83: ELECTRO GENERADORA DEL AUSTRO S.A. | E83: Azuay | F83: SPARTAN DEL ECUADOR PRODUCTOS QUIMICOS S.A. | G83: 1540 | H83: 0.001539999968 | I83: Sociedades Anónimas | J83: Recursos Naturales | K83: Otros | L83: Marzo
A84: 2021-0045-00013 | B84: ANTICORROSIVOS | C84: Bien | D84: ELECTRO GENERADORA DEL AUSTRO S.A. | E84: Azuay | F84: BARZALLO CORREA JOSE EDUARDO | G84: 80.36 | H84: 8.035999781e-05 | I84: Sociedades Anónimas | J84: Recursos Naturales | K84: Otros | L84: Marzo
A85: 2021-0045-00013 | B85: LAMINAS, ROLLOS Y EMPAQUES | C85: Bien | D85: ELECTRO GENERADORA DEL AUSTRO S.A. | E85: Azuay | F85: BARZALLO CORREA JOSE EDUARDO | G85: 40 | H85: 3.999999899e-05 | I85: Sociedades Anónimas | J85: Recursos Naturales | K85: Otros | L85: Marzo
A86: 2021-0045-00013 | B86: RODAMIENTOS A BOLAS | C86: Bien | D86: ELECTRO GENERADORA DEL AUSTRO S.A. | E86: Azuay | F86: BARZALLO CORREA JOSE EDUARDO | G86: 230.3592 | H86: 0.0002303592046 | I86: Sociedades Anónimas | J86: Recursos Naturales | K86: Otros | L86: Marzo
A87: 2021-0045-00013 | B87: SELLOS MECANICOS | C87: Bien | D87: ELECTRO GENERADORA DEL AUSTRO S.A. | E87: Azuay | F87: BARZALLO CORREA JOSE EDUARDO | G87: 107.138 | H87: 0.0001071380029 | I87: Sociedades Anónimas | J87: Recursos Naturales | K87: Otros | L87: Marzo
A88: 2021-0045-00014 | B88: TABLEROS ELECTRICOS PARA UNIDADES HERMETICAS | C88: Bien | D88: ELECTRO GENERADORA DEL AUSTRO S.A. | E88: Azuay | F88: DATALIGHTS CIA.LTDA. | G88: 18000 | H88: 0.01799999923 | I88: Sociedades Anónimas | J88: Recursos Naturales | K88: Otros | L88: Marzo
A89: 2021-0045-00015 | B89: CABLE CONCENTRICO DE CU XLPE 1X10 MAS 10 MM2 | C89: Bien | D89: ELECTRO GENERADORA DEL AUSTRO S.A. | E89: Azuay | F89: WDS-ENERGYGROUP INGENIERIA CONSTRUCCION & IMPORTACIONES S.A | G89: 3149.25 | H89: 0.003149250057 | I89: Sociedades Anónimas | J89: Recursos Naturales | K89: Otros | L89: Abril
A90: 2021-0045-00015 | B90: CONECTORES - INTERRUPTORES | C90: Bien | D90: ELECTRO GENERADORA DEL AUSTRO S.A. | E90: Azuay | F90: WDS-ENERGYGROUP INGENIERIA CONSTRUCCION & IMPORTACIONES S.A | G90: 1001.76 | H90: 0.001001760014 | I90: Sociedades Anónimas | J90: Recursos Naturales | K90: Otros | L90: Abril
A91: 2021-0045-00015 | B91: CONTROL Y SENSORES | C91: Bien | D91: ELECTRO GENERADORA DEL AUSTRO S.A. | E91: Azuay | F91: WDS-ENERGYGROUP INGENIERIA CONSTRUCCION & IMPORTACIONES S.A | G91: 70236.49 | H91: 0.07023648918 | I91: Sociedades Anónimas | J91: Recursos Naturales | K91: Otros | L91: Abril
A92: 2021-0045-00015 | B92: CONVERTIDORES DE AC/DC | C92: Bien | D92: ELECTRO GENERADORA DEL AUSTRO S.A. | E92: Azuay | F92: WDS-ENERGYGROUP INGENIERIA CONSTRUCCION & IMPORTACIONES S.A | G92: 5457.69 | H92: 0.005457689986 | I92: Sociedades Anónimas | J92: Recursos Naturales | K92: Otros | L92: Abril
A93: 2021-0045-00015 | B93: MODULOS | C93: Bien | D93: ELECTRO GENERADORA DEL AUSTRO S.A. | E93: Azuay | F93: WDS-ENERGYGROUP INGENIERIA CONSTRUCCION & IMPORTACIONES S.A | G93: 907.73 | H93: 0.0009077300201 | I93: Sociedades Anónimas | J93: Recursos Naturales | K93: Otros | L93: Abril
A94: 2021-0045-00015 | B94: OTRAS FUENTES DE PODER | C94: Bien | D94: ELECTRO GENERADORA DEL AUSTRO S.A. | E94: Azuay | F94: WDS-ENERGYGROUP INGENIERIA CONSTRUCCION & IMPORTACIONES S.A | G94: 494.39 | H94: 0.0004943900276 | I94: Sociedades Anónimas | J94: Recursos Naturales | K94: Otros | L94: Abril
A95: 2021-0045-00015 | B95: PRESOSTATO PARA USO GENERAL | C95: Bien | D95: ELECTRO GENERADORA DEL AUSTRO S.A. | E95: Azuay | F95: WDS-ENERGYGROUP INGENIERIA CONSTRUCCION & IMPORTACIONES S.A | G95: 3566.07 | H95: 0.003566069994 | I95: Sociedades Anónimas | J95: Recursos Naturales | K95: Otros | L95: Abril
A96: 2021-0045-00015 | B96: SENSOR INDUCTIVO | C96: Bien | D96: ELECTRO GENERADORA DEL AUSTRO S.A. | E96: Azuay | F96: WDS-ENERGYGROUP INGENIERIA CONSTRUCCION & IMPORTACIONES S.A | G96: 3384.5896 | H96: 0.003384589683 | I96: Sociedades Anónimas | J96: Recursos Naturales | K96: Otros | L96: Abril
A97: 2021-0045-00015 | B97: TABLEROS ELECTRICOS PARA UNIDADES HERMETICAS | C97: Bien | D97: ELECTRO GENERADORA DEL AUSTRO S.A. | E97: Azuay | F97: WDS-ENERGYGROUP INGENIERIA CONSTRUCCION & IMPORTACIONES S.A | G97: 364.71 | H97: 0.0003647099948 | I97: Sociedades Anónimas | J97: Recursos Naturales | K97: Otros | L97: Abril
A98: 2021-0045-00015 | B98: TERMINALES Y CONECTORES DE CABLES | C98: Bien | D98: ELECTRO GENERADORA DEL AUSTRO S.A. | E98: Azuay | F98: WDS-ENERGYGROUP INGENIERIA CONSTRUCCION & IMPORTACIONES S.A | G98: 478.8 | H98: 0.0004788000078 | I98: Sociedades Anónimas | J98: Recursos Naturales | K98: Otros | L98: Abril
A99: 2021-0045-00015 | B99: TERMOCUPLA | C99: Bien | D99: ELECTRO GENERADORA DEL AUSTRO S.A. | E99: Azuay | F99: WDS-ENERGYGROUP INGENIERIA CONSTRUCCION & IMPORTACIONES S.A | G99: 4019.94 | H99: 0.004019939806 | I99: Sociedades Anónimas | J99: Recursos Naturales | K99: Otros | L99: Abril
A100: 2021-0045-00016 | B100: SERVICIO DE LIMPIEZA DE AREAS OPERATIVAS Y DE INFLUENCIA | C100: Servicio | D100: ELECTRO GENERADORA DEL AUSTRO S.A. | E100: Azuay | F100: RODAS LOPEZ OSWALDO AURELIO | G100: 32415.98 | H100: 0.03241597861 | I100: Sociedades Anónimas | J100: Recursos Naturales | K100: Otros | L100: Abril
A101: 2021-0045-00017 | B101: ACERO LAMINADO EN U SEGUN ESPECIFICACION DEL CLIENTE | C101: Obra | D101: ELECTRO GENERADORA DEL AUSTRO S.A. | E101: Azuay | F101: COELLO PALACIOS JAIME ROBERTO | G101: 12260 | H101: 0.01226000022 | I101: Sociedades Anónimas | J101: Recursos Naturales | K101: Otros | L101: Mayo
A102: 2021-0045-00017 | B102: CHAPAS DE ALUMINIO ANTIDESLIZANTES | C102: Obra | D102: ELECTRO GENERADORA DEL AUSTRO S.A. | E102: Azuay | F102: COELLO PALACIOS JAIME ROBERTO | G102: 2100 | H102: 0.002099999925 | I102: Sociedades Anónimas | J102: Recursos Naturales | K102: Otros | L102: Mayo
A103: 2021-0045-00017 | B103: EXCAVACION DE ZANJAS | C103: Obra | D103: ELECTRO GENERADORA DEL AUSTRO S.A. | E103: Azuay | F103: COELLO PALACIOS JAIME ROBERTO | G103: 88 | H103: 8.800000069e-05 | I103: Sociedades Anónimas | J103: Recursos Naturales | K103: Otros | L103: Mayo
A104: 2021-0045-00017 | B104: HORMIGON PREMEZCLADO | C104: Obra | D104: ELECTRO GENERADORA DEL AUSTRO S.A. | E104: Azuay | F104: COELLO PALACIOS JAIME ROBERTO | G104: 775 | H104: 0.0007750000223 | I104: Sociedades Anónimas | J104: Recursos Naturales | K104: Otros | L104: Mayo
A105: 2021-0045-00017 | B105: NIVELACION DE EMPLAZAMIENTOS | C105: Obra | D105: ELECTRO GENERADORA DEL AUSTRO S.A. | E105: Azuay | F105: COELLO PALACIOS JAIME ROBERTO | G105: 240 | H105: 0.0002399999939 | I105: Sociedades Anónimas | J105: Recursos Naturales | K105: Otros | L105: Mayo
A106: 2021-0045-00017 | B106: PASA MANOS DE ALUMINIO | C106: Obra | D106: ELECTRO GENERADORA DEL AUSTRO S.A. | E106: Azuay | F106: COELLO PALACIOS JAIME ROBERTO | G106: 4620 | H106: 0.004619999789 | I106: Sociedades Anónimas | J106: Recursos Naturales | K106: Otros | L106: Mayo
A107: 2021-0045-00017 | B107: PIEZAS DE MADERA USADAS CON FINES ESTRUCTURALES O DE SUSTENTO, EN LA CONSTRUCCION: ENCOFRADOS PARA HORMIGON, ANDAMIAJES, VIGAS, POSTES, ETC. | C107: Obra | D107: ELECTRO GENERADORA DEL AUSTRO S.A. | E107: Azuay | F107: COELLO PALACIOS JAIME ROBERTO | G107: 450 | H107: 0.0004499999923 | I107: Sociedades Anónimas | J107: Recursos Naturales | K107: Otros | L107: Mayo
A108: 2021-0045-00017 | B108: PLATO DE ANCLAJE (PLACA) ELABORADO EN ACERO | C108: Obra | D108: ELECTRO GENERADORA DEL AUSTRO S.A. | E108: Azuay | F108: COELLO PALACIOS JAIME ROBERTO | G108: 360 | H108: 0.0003600000055 | I108: Sociedades Anónimas | J108: Recursos Naturales | K108: Otros | L108: Mayo
A109: 2021-0045-00017 | B109: SERVICIO DE ALQUILER MOTORES - GENERADORES | C109: Obra | D109: ELECTRO GENERADORA DEL AUSTRO S.A. | E109: Azuay | F109: COELLO PALACIOS JAIME ROBERTO | G109: 451.25 | H109: 0.0004512500018 | I109: Sociedades Anónimas | J109: Recursos Naturales | K109: Otros | L109: Mayo
A110: 2021-0045-00017 | B110: TUBOS ESTRUCTURALES | C110: Obra | D110: ELECTRO GENERADORA DEL AUSTRO S.A. | E110: Azuay | F110: COELLO PALACIOS JAIME ROBERTO | G110: 2250 | H110: 0.002249999903 | I110: Sociedades Anónimas | J110: Recursos Naturales | K110: Otros | L110: Mayo
A111: 2021-0045-00018 | B111: SULFATO DE ALUMINIO | C111: Bien | D111: ELECTRO GENERADORA DEL AUSTRO S.A. | E111: Azuay | F111: COMERCIALIZADORA GLOBE INDUSTRIES GLOBEINDSA S.A. | G111: 218.8 | H111: 0.0002188000071 | I111: Sociedades Anónimas | J111: Recursos Naturales | K111: Otros | L111: Mayo
A112: 2021-0045-00019 | B112: ENCHUFES (CLAVIJAS) Y TOMAS DE CORRIENTE | C112: Bien | D112: ELECTRO GENERADORA DEL AUSTRO S.A. | E112: Azuay | F112: COMERCIALIZADORA GLOBE INDUSTRIES GLOBEINDSA S.A. | G112: 82.2 | H112: 8.220000018e-05 | I112: Sociedades Anónimas | J112: Recursos Naturales | K112: Otros | L112: Mayo
A113: 2021-0045-00019 | B113: INTERRUPTORES 10 A / BIPOLARES | C113: Bien | D113: ELECTRO GENERADORA DEL AUSTRO S.A. | E113: Azuay | F113: COMERCIALIZADORA GLOBE INDUSTRIES GLOBEINDSA S.A. | G113: 56.3 | H113: 5.629999941e-05 | I113: Sociedades Anónimas | J113: Recursos Naturales | K113: Otros | L113: Mayo
A114: 2021-0045-00019 | B114: PEGANTE LIQUIDO | C114: Bien | D114: ELECTRO GENERADORA DEL AUSTRO S.A. | E114: Azuay | F114: COMERCIALIZADORA GLOBE INDUSTRIES GLOBEINDSA S.A. | G114: 129.25 | H114: 0.0001292499946 | I114: Sociedades Anónimas | J114: Recursos Naturales | K114: Otros | L114: Mayo
A115: 2021-0045-00020 | B115: BATERIAS HUMEDAS 12V, PARA VEHICULOS | C115: Bien | D115: ELECTRO GENERADORA DEL AUSTRO S.A. | E115: Azuay | F115: IMPORTADORA SU BATERIA IMSUBAT CIA LTDA | G115: 237.6 | H115: 0.0002376000048 | I115: Sociedades Anónimas | J115: Recursos Naturales | K115: Otros | L115: Mayo
A116: 2021-0045-00021 | B116: BOMBAS CENTRIFUGAS PARA LIQUIDOS | C116: Bien | D116: ELECTRO GENERADORA DEL AUSTRO S.A. | E116: Azuay | F116: MAQUINARIAS HENRIQUES C.A. | G116: 2828.1 | H116: 0.002828099998 | I116: Sociedades Anónimas | J116: Recursos Naturales | K116: Otros | L116: Mayo
A117: 2021-0045-00021 | B117: BOMBAS DE DOSIFICACION DE SOSA CAUSTICA | C117: Bien | D117: ELECTRO GENERADORA DEL AUSTRO S.A. | E117: Azuay | F117: MAQUINARIAS HENRIQUES C.A. | G117: 772.92 | H117: 0.0007729199715 | I117: Sociedades Anónimas | J117: Recursos Naturales | K117: Otros | L117: Mayo
A118: 2021-0045-00021 | B118: PRESOSTATO PARA BOMBAS | C118: Bien | D118: ELECTRO GENERADORA DEL AUSTRO S.A. | E118: Azuay | F118: MAQUINARIAS HENRIQUES C.A. | G118: 95.09 | H118: 9.508999938e-05 | I118: Sociedades Anónimas | J118: Recursos Naturales | K118: Otros | L118: Mayo
A119: 2021-0045-00022 | B119: OTROS ACCESORIOS PARA TUBOS O CANOS, DE HIERRO O ACERO INOXIDABLE:CAJETINES PARA ENCHUFES. | C119: Bien | D119: ELECTRO GENERADORA DEL AUSTRO S.A. | E119: Azuay | F119: SIGUENCIA ALVAREZ CRISTIAN FABIAN | G119: 87.5 | H119: 8.749999688e-05 | I119: Sociedades Anónimas | J119: Recursos Naturales | K119: Otros | L119: Mayo
A120: 2021-0045-00023 | B120: DISCO DURO | C120: Bien | D120: ELECTRO GENERADORA DEL AUSTRO S.A. | E120: Azuay | F120: COMERCIALIZADORA GLOBE INDUSTRIES GLOBEINDSA S.A. | G120: 687.48 | H120: 0.0006874799728 | I120: Sociedades Anónimas | J120: Recursos Naturales | K120: Otros | L120: Mayo
A121: 2021-0045-00024 | B121: RELES PARA UN VOLTAJE MAXIMO DE 1000 V: PARA PROTECCION | C121: Bien | D121: ELECTRO GENERADORA DEL AUSTRO S.A. | E121: Azuay | F121: COMERCIALIZADORA GLOBE INDUSTRIES GLOBEINDSA S.A. | G121: 1680.94 | H121: 0.00168094004 | I121: Sociedades Anónimas | J121: Recursos Naturales | K121: Otros | L121: Mayo
A122: 32-GG-2021-00001 | B122: SERVICIOS DE ALMUERZOS Y REFRIGERIOS PARA INSTITUCIONES | C122: Bien | D122: EMPRESA PUBLICA DE AGUA ALCANTARILLADO Y ASEO DE PASAJE AGUAPAS EP | E122: El Oro | F122: NAGUA LOJA CHRISTOPHER RONALDO | G122: 673.75 | H122: 0.000673750008 | I122: EP de los GAD | J122: Desarrollo Urbano y Vivienda | K122: GAD y sus EP | L122: Marzo
A123: 32-GG-2021-00002 | B123: SERVICIOS ESPECIALIZADOS DE CONSTRUCCION RELACIONADOS CON ESTRUCTURAS DE ACERO | C123: Servicio | D123: EMPRESA PUBLICA DE AGUA ALCANTARILLADO Y ASEO DE PASAJE AGUAPAS EP | E123: El Oro | F123: LLIGUIN CASTRO JUAN ENRIQUE | G123: 9329.99 | H123: 0.009329989552 | I123: EP de los GAD | J123: Desarrollo Urbano y Vivienda | K123: GAD y sus EP | L123: Marzo
A124: 32-GG-2021-00003 | B124: OTROS SERVICIOS DE ALQUILER RELATIVOS A EXCAVADORAS | C124: Servicio | D124: EMPRESA PUBLICA DE AGUA ALCANTARILLADO Y ASEO DE PASAJE AGUAPAS EP | E124: El Oro | F124: ECONDI S A | G124: 6250 | H124: 0.006250000093 | I124: EP de los GAD | J124: Desarrollo Urbano y Vivienda | K124: GAD y sus EP | L124: Abril
A125: 32-GG-2021-00004 | B125: SERVICIOS DE ALMUERZOS Y REFRIGERIOS PARA INSTITUCIONES | C125: Bien | D125: EMPRESA PUBLICA DE AGUA ALCANTARILLADO Y ASEO DE PASAJE AGUAPAS EP | E125: El Oro | F125: NAGUA LOJA CHRISTOPHER RONALDO | G125: 404.25 | H125: 0.0004042499932 | I125: EP de los GAD | J125: Desarrollo Urbano y Vivienda | K125: GAD y sus EP | L125: Abril
A126: 32-GG-2021-00005 | B126: SERVICIOS DE ALMUERZOS Y REFRIGERIOS PARA INSTITUCIONES | C126: Servicio | D126: EMPRESA PUBLICA DE AGUA ALCANTARILLADO Y ASEO DE PASAJE AGUAPAS EP | E126: El Oro | F126: NAGUA LOJA CHRISTOPHER RONALDO | G126: 244.75 | H126: 0.000244750001 | I126: EP de los GAD | J126: Desarrollo Urbano y Vivienda | K126: GAD y sus EP | L126: Abril
A127: 32-GG-2021-00006 | B127: BOMBA DE AGUA | C127: Bien | D127: EMPRESA PUBLICA DE AGUA ALCANTARILLADO Y ASEO DE PASAJE AGUAPAS EP | E127: El Oro | F127: VALVERDE GALLARDO JOSE MIGUEL | G127: 3160 | H127: 0.00316000008 | I127: EP de los GAD | J127: Desarrollo Urbano y Vivienda | K127: GAD y sus EP | L127: Mayo
A128: 32-GG-2021-00006 | B128: BOMBAS ELECTRICAS PARA COMBUSTIBLES | C128: Bien | D128: EMPRESA PUBLICA DE AGUA ALCANTARILLADO Y ASEO DE PASAJE AGUAPAS EP | E128: El Oro | F128: VALVERDE GALLARDO JOSE MIGUEL | G128: 2370 | H128: 0.002369999886 | I128: EP de los GAD | J128: Desarrollo Urbano y Vivienda | K128: GAD y sus EP | L128: Mayo
A129: 62-DGCP-2021-00002 | B129: OTRAS OBRAS DE INGENIERIA CIVIL | C129: Obra | D129: GOBIERNO PROVINCIAL DE PICHINCHA | E129: Pichincha | F129: QUINTANA VILAC LUIS EDUARDO | G129: 347152.99 | H129: 0.3471529782 | I129: GAD Provinciales | J129: Régimen de GAD | K129: GAD y sus EP | L129: Abril
A130: CNEL-RE-0185-2020-00001 | B130: MAQUINAS-HERRAMIENTA DE TRABAJAR METALES, POLIVALENTES, ELECTRICAS | C130: Bien | D130: EMPRESA ELÉCTRICA PÚBLICA ESTRATÉGICA CORPORACIÓN NACIONAL DE ELECTRICIDAD CNEL EP | E130: Guayas | F130: ACRETI S.A. | G130: 12179488.54 | H130: 12.17948818 | I130: EP de la Función Ejecutiva | J130: Recursos Naturales | K130: Gobierno Central y sus EP | L130: Marzo
A131: EME-GADMM-001-2021-00001 | B131: CONSTRUCCION DE BOVEDAS | C131: Obra | D131: GOBIERNO AUTONOMO DESCENTRALIZADO MUNICIPAL DE MONTUFAR | E131: Carchi | F131: PROAÑO VÁSQUEZ EDWIN RICARDO | G131: 82999.92 | H131: 0.08299992234 | I131: GAD Municipales | J131: Régimen de GAD | K131: GAD y sus EP | L131: Marzo
A132: EMERG-001-GADPC-2021-00001 | B132: OTROS SERVICIOS DE ALQUILER RELATIVOS A MAQUINAS DE CARGA FRONTAL, ETC. | C132: Servicio | D132: GOB. PROV. DEL CAÑAR | E132: Cañar | F132: INDUCTROC S.A. | G132: 22015 | H132: 0.02201499976 | I132: GAD Provinciales | J132: Régimen de GAD | K132: GAD y sus EP | L132: Abril
A133: EMERG-001-GADPC-2021-00002 | B133: OTROS SERVICIOS DE ALQUILER RELATIVOS A MAQUINAS DE CARGA FRONTAL, ETC. | C133: Servicio | D133: GOB. PROV. DEL CAÑAR | E133: Cañar | F133: TENEZACA BRAVO TELMO ABSALON | G133: 16730 | H133: 0.01672999933 | I133: GAD Provinciales | J133: Régimen de GAD | K133: GAD y sus EP | L133: Abril
A134: EMERG-001-GADPC-2021-00003 | B134: PIEDRA PARTIDA O TRITURADA | C134: Bien | D134: GOB. PROV. DEL CAÑAR | E134: Cañar | F134: CADMECORP ASOCIADOS S.A. | G134: 21100 | H134: 0.02109999955 | I134: GAD Provinciales | J134: Régimen de GAD | K134: GAD y sus EP | L134: Abril
A135: EMERG-001-GADPC-2021-00004 | B135: SERVICIOS DE GESTION DE PROYECTOS RELACIONADOS CON LA CONSTRUCCION DE OBRAS DE INGENIERIA CIVIL DE TUBERIAS | C135: Obra | D135: GOB. PROV. DEL CAÑAR | E135: Cañar | F135: MOROCHO OCHOA LUIS EMILIO | G135: 15150.9815 | H135: 0.01515098196 | I135: GAD Provinciales | J135: Régimen de GAD | K135: GAD y sus EP | L135: Mayo
A136: GADMCC-DJ-2021-01-00001 | B136: OTRAS OBRAS DE INGENIERIA CIVIL | C136: Obra | D136: GOBIERNO AUTONOMO DESCENTRALIZADO MUNICIPAL DEL CANTON CEVALLOS | E136: Tungurahua | F136: LARA PAZMIÑO CARLOS ARTURO | G136: 108609.34 | H136: 0.1086093411 | I136: GAD Municipales | J136: Régimen de GAD | K136: GAD y sus EP | L136: Febrero
A137: GADMCH-2021-A-0082-00001 | B137: PIPETA | C137: Bien | D137: MUNICIPIO DE CHONE | E137: Manabí | F137: BIOGENGTLAB S.A. | G137: 10000 | H137: 0.009999999776 | I137: GAD Municipales | J137: Régimen de GAD | K137: GAD y sus EP | L137: Abril
A138: GADMCH-2021-A-038-00001 | B138: OTRAS OBRAS DE INGENIERIA CIVIL | C138: Obra | D138: MUNICIPIO DE CHONE | E138: Manabí | F138: MOREIRA MORALES VERDI ANTONIO | G138: 115960 | H138: 0.1159600019 | I138: GAD Municipales | J138: Régimen de GAD | K138: GAD y sus EP | L138: Abril
A139: GADMCH-2021-A-038-00002 | B139: ALQUILER DE EQUIPO CAMINERO | C139: Servicio | D139: MUNICIPIO DE CHONE | E139: Manabí | F139: CONSTRUCJOBS | G139: 105872 | H139: 0.1058719978 | I139: GAD Municipales | J139: Régimen de GAD | K139: GAD y sus EP | L139: Abril
A140: GADMCH-2021-A-038-00003 | B140: SUMINISTRO DE AGUA EN TANQUEROS | C140: Servicio | D140: MUNICIPIO DE CHONE | E140: Manabí | F140: VERA MANZABA RITTER RENAN | G140: 63000 | H140: 0.06300000101 | I140: GAD Municipales | J140: Régimen de GAD | K140: GAD y sus EP | L140: Abril
A141: GADMCH-2021-A-038-00004 | B141: AGREGADOS PETREOS | C141: Bien | D141: MUNICIPIO DE CHONE | E141: Manabí | F141: MEGAROK S.A. | G141: 10782.5 | H141: 0.0107824998 | I141: GAD Municipales | J141: Régimen de GAD | K141: GAD y sus EP | L141: Abril
A142: GADMCH-2021-A-038-00005 | B142: SERVICIOS DE MANTENIMIENTO CORRECTIVO Y REPARACION DE VEHICULOS DE MOTOR | C142: Servicio | D142: MUNICIPIO DE CHONE | E142: Manabí | F142: AQUAKLEANER S.A. | G142: 44642.86 | H142: 0.04464285821 | I142: GAD Municipales | J142: Régimen de GAD | K142: GAD y sus EP | L142: Abril
A143: GADMCH-2021-A-038-00006 | B143: TRANSPORTE POR CARRETERA DE PRODUCTOS SECOS A GRANEL COMO ARENA, CARBON, ETC. | C143: Servicio | D143: MUNICIPIO DE CHONE | E143: Manabí | F143: TRANSPORTES Y SERVICIOS TRANSRIVENECA S.A. | G143: 22336.8 | H143: 0.02233679965 | I143: GAD Municipales | J143: Régimen de GAD | K143: GAD y sus EP | L143: Abril
A144: GADMCH-2021-A-038-00007 | B144: OTRAS OBRAS DE INGENIERIA CIVIL | C144: Obra | D144: MUNICIPIO DE CHONE | E144: Manabí | F144: ALCIVAR MEZA MARA SHAKIRA | G144: 132789.7 | H144: 0.1327897012 | I144: GAD Municipales | J144: Régimen de GAD | K144: GAD y sus EP | L144: Mayo
A145: GADMCN-RA-EMG-048-20-00001 | B145: EXCAVADORA DE ORUGAS | C145: Bien | D145: GOBIERNO AUTONOMO DESCENTRALIZADO MUNICIPAL DEL CANTON NARANJAL GADMCN | E145: Guayas | F145: IASA S.A. | G145: 337000 | H145: 0.3370000124 | I145: GAD Municipales | J145: Régimen de GAD | K145: GAD y sus EP | L145: Abril
A146: GADMCN-RA-EMG-048-20-00001 | B146: RETROEXCAVADORAS | C146: Bien | D146: GOBIERNO AUTONOMO DESCENTRALIZADO MUNICIPAL DEL CANTON NARANJAL GADMCN | E146: Guayas | F146: IASA S.A. | G146: 114000 | H146: 0.1140000001 | I146: GAD Municipales | J146: Régimen de GAD | K146: GAD y sus EP | L146: Abril
A147: GADMCN-RA-EMG-048-20-00001 | B147: TRACTORES DE ORUGA: TRACTORRES DE ORUGA CON CABRESTANTE, ETC. | C147: Bien | D147: GOBIERNO AUTONOMO DESCENTRALIZADO MUNICIPAL DEL CANTON NARANJAL GADMCN | E147: Guayas | F147: IASA S.A. | G147: 243000 | H147: 0.2430000007 | I147: GAD Municipales | J147: Régimen de GAD | K147: GAD y sus EP | L147: Abril
A148: GADPRCH-002-2021-00001 | B148: OTROS SERVICIOS DE ALQUILER RELATIVOS A TRACTORES PARA CONSTRUCCION Y MOVIMIENTO DE TIERRAS | C148: Servicio | D148: GOBIERNO AUTONOMO DESCENTRALIZADO DE LA PARROQUIA RURAL CHIRIJOS | E148: Manabí | F148: CEDEÑO GOROZABEL LUIS ALFREDO | G148: 1600 | H148: 0.00159999996 | I148: GAD Parroquiales Rurales | J148: Régimen de GAD | K148: GAD y sus EP | L148: Abril
A149: GGR-002-2021-00001 | B149: OTRAS OBRAS DE INGENIERIA CIVIL | C149: Servicio | D149: EMPRESA PUBLICA FLOTA PETROLERA ECUATORIANA -EP FLOPEC- | E149: Esmeraldas | F149: PADILLA LARA JUAN EUGENIO | G149: 24443 | H149: 0.02444300056 | I149: EP de la Función Ejecutiva | J149: Comunicaciones | K149: Gobierno Central y sus EP | L149: Marzo
A150: INSPI-DE-2021-0003-R-00001 | B150: BATA MANGA LARGA (MULTIUSO) | C150: Bien | D150: INSTITUTO NACIONAL DE INVESTIGACIÓN EN SALUD PUBLICA -INSPI- DR. LEOPOLDO IZQUIETA PÉREZ | E150: Guayas | F150: HERRERA CELA RODRIGO XAVIER | G150: 4830 | H150: 0.004829999991 | I150: Administración del Estado | J150: Salud | K150: Gobierno Central y sus EP | L150: Febrero
A151: INSPI-DE-2021-0003-R-00002 | B151: INSUMOS DE USO GENERAL | C151: Bien | D151: INSTITUTO NACIONAL DE INVESTIGACIÓN EN SALUD PUBLICA -INSPI- DR. LEOPOLDO IZQUIETA PÉREZ | E151: Guayas | F151: TEXTIQUIM CIA. LTDA. | G151: 6380 | H151: 0.006380000152 | I151: Administración del Estado | J151: Salud | K151: Gobierno Central y sus EP | L151: Febrero
A152: INSPI-DE-2021-0003-R-00003 | B152: SERVICIOS DE TRABAJOS DE CONSTRUCCION ESPECIALIZADOS RELACIONADOS CON LA INSTALACION DE LA RED DE CABLES ELECTRICOS DE APARATOS EN EDIFICIOS Y OTRAS OBRAS DE CONSTRUCCION | C152: Servicio | D152: INSTITUTO NACIONAL DE INVESTIGACIÓN EN SALUD PUBLICA -INSPI- DR. LEOPOLDO IZQUIETA PÉREZ | E152: Guayas | F152: LAYMAN PIZARRO GABRIEL ALBERTO | G152: 72999.34 | H152: 0.07299934328 | I152: Administración del Estado | J152: Salud | K152: Gobierno Central y sus EP | L152: Febrero
A153: INSPI-DE-2021-0003-R-00004 | B153: REACTIVOS COMPUESTOS PARA DIAGNOSTICO O LABORATORIO N.C.P.: SOBRE SOPORTE DE PAPEL O CARTON. | C153: Bien | D153: INSTITUTO NACIONAL DE INVESTIGACIÓN EN SALUD PUBLICA -INSPI- DR. LEOPOLDO IZQUIETA PÉREZ | E153: Guayas | F153: LABOMERSA S.A. | G153: 62578.15 | H153: 0.06257814914 | I153: Administración del Estado | J153: Salud | K153: Gobierno Central y sus EP | L153: Marzo
A154: INSPI-DE-2021-0003-R-00005 | B154: SERVICIOS DE TECHADO E IMPERMEABILIZACION DE TECHOS, TRABAJOS DE CONSTRUCCION ESPECIALIZADOS CON LA INSTALACION DE TEJADOS, TRABAJO DE IMPERMEABILIZACION | C154: Servicio | D154: INSTITUTO NACIONAL DE INVESTIGACIÓN EN SALUD PUBLICA -INSPI- DR. LEOPOLDO IZQUIETA PÉREZ | E154: Guayas | F154: MASSUH RAMIREZ YAMIL MIGUEL | G154: 10255.5 | H154: 0.01025549974 | I154: Administración del Estado | J154: Salud | K154: Gobierno Central y sus EP | L154: Marzo
A155: INSPI-DE-2021-0003-R-00006 | B155: INSUMOS DE USO GENERAL | C155: Bien | D155: INSTITUTO NACIONAL DE INVESTIGACIÓN EN SALUD PUBLICA -INSPI- DR. LEOPOLDO IZQUIETA PÉREZ | E155: Guayas | F155: LABOMERSA S.A. | G155: 67423 | H155: 0.06742300093 | I155: Administración del Estado | J155: Salud | K155: Gobierno Central y sus EP | L155: Marzo
A156: INSPI-DE-2021-0036-R-00001 | B156: REACTIVOS COMPUESTOS PARA DIAGNOSTICO O LABORATORIO N.C.P.: SOBRE SOPORTE DE PAPEL O CARTON. | C156: Bien | D156: INSTITUTO NACIONAL DE INVESTIGACIÓN EN SALUD PUBLICA -INSPI- DR. LEOPOLDO IZQUIETA PÉREZ | E156: Guayas | F156: BIOMOL ECUADOR CIA. LTDA. | G156: 155741.83 | H156: 0.1557418257 | I156: Administración del Estado | J156: Salud | K156: Gobierno Central y sus EP | L156: Mayo
A157: INSPI-DE-2021-0036-R-00002 | B157: BOTA DE CAUCHO CON PUNTA DE ACERO | C157: Bien | D157: INSTITUTO NACIONAL DE INVESTIGACIÓN EN SALUD PUBLICA -INSPI- DR. LEOPOLDO IZQUIETA PÉREZ | E157: Guayas | F157: MV IMPORTACIONES MV-IMP CIA. LTDA. | G157: 130 | H157: 0.0001300000004 | I157: Administración del Estado | J157: Salud | K157: Gobierno Central y sus EP | L157: Mayo
A158: INSPI-DE-2021-0036-R-00002 | B158: GAFAS PROTECTORAS TRANSPARENTES | C158: Bien | D158: INSTITUTO NACIONAL DE INVESTIGACIÓN EN SALUD PUBLICA -INSPI- DR. LEOPOLDO IZQUIETA PÉREZ | E158: Guayas | F158: MV IMPORTACIONES MV-IMP CIA. LTDA. | G158: 84 | H158: 8.399999933e-05 | I158: Administración del Estado | J158: Salud | K158: Gobierno Central y sus EP | L158: Mayo
A159: INSPI-DE-2021-0036-R-00002 | B159: INSUMOS DE USO GENERAL | C159: Bien | D159: INSTITUTO NACIONAL DE INVESTIGACIÓN EN SALUD PUBLICA -INSPI- DR. LEOPOLDO IZQUIETA PÉREZ | E159: Guayas | F159: MV IMPORTACIONES MV-IMP CIA. LTDA. | G159: 15347.84 | H159: 0.01534784026 | I159: Administración del Estado | J159: Salud | K159: Gobierno Central y sus EP | L159: Mayo
A160: INSPI-DE-2021-0036-R-00002 | B160: OVEROL EN IMPERMEABLE | C160: Bien | D160: INSTITUTO NACIONAL DE INVESTIGACIÓN EN SALUD PUBLICA -INSPI- DR. LEOPOLDO IZQUIETA PÉREZ | E160: Guayas | F160: MV IMPORTACIONES MV-IMP CIA. LTDA. | G160: 3120 | H160: 0.003120000008 | I160: Administración del Estado | J160: Salud | K160: Gobierno Central y sus EP | L160: Mayo
A161: INSPI-DE-2021-0036-R-00002 | B161: SERVICIO DE CONFECCION DE ROPA DE TRABAJO | C161: Bien | D161: INSTITUTO NACIONAL DE INVESTIGACIÓN EN SALUD PUBLICA -INSPI- DR. LEOPOLDO IZQUIETA PÉREZ | E161: Guayas | F161: MV IMPORTACIONES MV-IMP CIA. LTDA. | G161: 7482.5 | H161: 0.007482499816 | I161: Administración del Estado | J161: Salud | K161: Gobierno Central y sus EP | L161: Mayo
A162: INSPI-DE-2021-0036-R-00002 | B162: ZAPATONES | C162: Bien | D162: INSTITUTO NACIONAL DE INVESTIGACIÓN EN SALUD PUBLICA -INSPI- DR. LEOPOLDO IZQUIETA PÉREZ | E162: Guayas | F162: MV IMPORTACIONES MV-IMP CIA. LTDA. | G162: 2116.8 | H162: 0.002116800053 | I162: Administración del Estado | J162: Salud | K162: Gobierno Central y sus EP | L162: Mayo
A163: INSPI-DE-2021-0036-R-00003 | B163: REACTIVOS COMPUESTOS PARA DIAGNOSTICO O LABORATORIO N.C.P.: SOBRE SOPORTE DE PAPEL O CARTON. | C163: Bien | D163: INSTITUTO NACIONAL DE INVESTIGACIÓN EN SALUD PUBLICA -INSPI- DR. LEOPOLDO IZQUIETA PÉREZ | E163: Guayas | F163: VENEGAS OLMEDO GUSTAVO ABDON | G163: 540 | H163: 0.0005399999791 | I163: Administración del Estado | J163: Salud | K163: Gobierno Central y sus EP | L163: Mayo
A164: MSP-HGNDC-2021-014-R-00001 | B164: GORRO DESCARTABLE PARA CIRUJANO | C164: Bien | D164: HOSPITAL GENERAL DR. NAPOLEON DÁVILA CÓRDOVA | E164: Manabí | F164: MOREIRA JEREMIAS LUIS BERNARDO | G164: 76 | H164: 7.599999662e-05 | I164: Administración del Estado | J164: Salud | K164: Gobierno Central y sus EP | L164: Abril
A165: MSP-HGNDC-2021-014-R-00001 | B165: MASCARILLAS DE PROTECCION | C165: Bien | D165: HOSPITAL GENERAL DR. NAPOLEON DÁVILA CÓRDOVA | E165: Manabí | F165: MOREIRA JEREMIAS LUIS BERNARDO | G165: 1722 | H165: 0.001721999957 | I165: Administración del Estado | J165: Salud | K165: Gobierno Central y sus EP | L165: Abril
A166: MSP-HGNDC-2021-014-R-00002 | B166: GUANTES | C166: Bien | D166: HOSPITAL GENERAL DR. NAPOLEON DÁVILA CÓRDOVA | E166: Manabí | F166: OROZCO FLORES CRISTINA VALERIA | G166: 6200 | H166: 0.006200000178 | I166: Administración del Estado | J166: Salud | K166: Gobierno Central y sus EP | L166: Abril
A167: MSP-HGNDC-2021-014-R-00002 | B167: PRENDAS DE VESTIR PARA SEGURIDAD INDUSTRIAL | C167: Bien | D167: HOSPITAL GENERAL DR. NAPOLEON DÁVILA CÓRDOVA | E167: Manabí | F167: OROZCO FLORES CRISTINA VALERIA | G167: 595 | H167: 0.0005949999904 | I167: Administración del Estado | J167: Salud | K167: Gobierno Central y sus EP | L167: Abril
A168: MSP-HGNDC-2021-014-R-00003 | B168: INSUMOS DE USO GENERAL | C168: Bien | D168: HOSPITAL GENERAL DR. NAPOLEON DÁVILA CÓRDOVA | E168: Manabí | F168: CRUZ RAMIREZ EDISON FERNANDO | G168: 13497.8 | H168: 0.01349779963 | I168: Administración del Estado | J168: Salud | K168: Gobierno Central y sus EP | L168: Abril
A169: MSP-HGNDC-2021-014-R-00003 | B169: JERINGAS,AGUJAS,CATETERES,CANULAS Y ARTICULOS ANALOGOS, AGUJAS TUBULARES DE METAL Y AGUJAS DE SUTURA | C169: Bien | D169: HOSPITAL GENERAL DR. NAPOLEON DÁVILA CÓRDOVA | E169: Manabí | F169: CRUZ RAMIREZ EDISON FERNANDO | G169: 8804.5 | H169: 0.008804500103 | I169: Administración del Estado | J169: Salud | K169: Gobierno Central y sus EP | L169: Abril
A170: MSP-HGNDC-2021-014-R-00004 | B170: OXIGENO | C170: Bien | D170: HOSPITAL GENERAL DR. NAPOLEON DÁVILA CÓRDOVA | E170: Manabí | F170: VERA ZAMBRANO FREYA ESPERANZA | G170: 13284 | H170: 0.01328399964 | I170: Administración del Estado | J170: Salud | K170: Gobierno Central y sus EP | L170: Abril
A171: MSP-HGNDC-2021-014-R-00005 | B171: REACTIVOS PARA ANALISIS CELULAR | C171: Bien | D171: HOSPITAL GENERAL DR. NAPOLEON DÁVILA CÓRDOVA | E171: Manabí | F171: VIBAG C.A. | G171: 23400 | H171: 0.02339999937 | I171: Administración del Estado | J171: Salud | K171: Gobierno Central y sus EP | L171: Abril
A172: MSP-HGNDC-2021-020-R-00001 | B172: ACETILCISTEÍNA | C172: Bien | D172: HOSPITAL GENERAL DR. NAPOLEON DÁVILA CÓRDOVA | E172: Manabí | F172: CORPORACION GREENMED S.A. | G172: 3813 | H172: 0.00381299993 | I172: Administración del Estado | J172: Salud | K172: Gobierno Central y sus EP | L172: Mayo
A173: MSP-HGNDC-2021-020-R-00001 | B173: ACIDO ASCORBICO 1 G. 6 AMP. 5 ML. | C173: Bien | D173: HOSPITAL GENERAL DR. NAPOLEON DÁVILA CÓRDOVA | E173: Manabí | F173: CORPORACION GREENMED S.A. | G173: 2200 | H173: 0.002199999988 | I173: Administración del Estado | J173: Salud | K173: Gobierno Central y sus EP | L173: Mayo
A174: MSP-HGNDC-2021-020-R-00001 | B174: AGENTES GELATINAS | C174: Bien | D174: HOSPITAL GENERAL DR. NAPOLEON DÁVILA CÓRDOVA | E174: Manabí | F174: CORPORACION GREENMED S.A. | G174: 120 | H174: 0.000119999997 | I174: Administración del Estado | J174: Salud | K174: Gobierno Central y sus EP | L174: Mayo
A175: MSP-HGNDC-2021-020-R-00001 | B175: AMLODIPINA - SÓLIDO ORAL- 5 MG | C175: Bien | D175: HOSPITAL GENERAL DR. NAPOLEON DÁVILA CÓRDOVA | E175: Manabí | F175: CORPORACION GREENMED S.A. | G175: 400 | H175: 0.0003999999899 | I175: Administración del Estado | J175: Salud | K175: Gobierno Central y sus EP | L175: Mayo
A176: MSP-HGNDC-2021-020-R-00001 | B176: AMPICILINA + SULBACTAM | C176: Bien | D176: HOSPITAL GENERAL DR. NAPOLEON DÁVILA CÓRDOVA | E176: Manabí | F176: CORPORACION GREENMED S.A. | G176: 1650 | H176: 0.001649999991 | I176: Administración del Estado | J176: Salud | K176: Gobierno Central y sus EP | L176: Mayo
A177: MSP-HGNDC-2021-020-R-00001 | B177: AZITROMICINA | C177: Bien | D177: HOSPITAL GENERAL DR. NAPOLEON DÁVILA CÓRDOVA | E177: Manabí | F177: CORPORACION GREENMED S.A. | G177: 1381.5 | H177: 0.001381500042 | I177: Administración del Estado | J177: Salud | K177: Gobierno Central y sus EP | L177: Mayo
A178: MSP-HGNDC-2021-020-R-00001 | B178: CALCIO GLUCONATO | C178: Bien | D178: HOSPITAL GENERAL DR. NAPOLEON DÁVILA CÓRDOVA | E178: Manabí | F178: CORPORACION GREENMED S.A. | G178: 96 | H178: 9.60000034e-05 | I178: Administración del Estado | J178: Salud | K178: Gobierno Central y sus EP | L178: Mayo
A179: MSP-HGNDC-2021-020-R-00001 | B179: CARBOHIDRATOS (DEXTROSA EN AGUA) | C179: Bien | D179: HOSPITAL GENERAL DR. NAPOLEON DÁVILA CÓRDOVA | E179: Manabí | F179: CORPORACION GREENMED S.A. | G179: 916 | H179: 0.00091599999 | I179: Administración del Estado | J179: Salud | K179: Gobierno Central y sus EP | L179: Mayo
A180: MSP-HGNDC-2021-020-R-00001 | B180: CARBONATO ACIDO DE SODIO (BICARBONATO DE SODIO) | C180: Bien | D180: HOSPITAL GENERAL DR. NAPOLEON DÁVILA CÓRDOVA | E180: Manabí | F180: CORPORACION GREENMED S.A. | G180: 308 | H180: 0.0003079999879 | I180: Administración del Estado | J180: Salud | K180: Gobierno Central y sus EP | L180: Mayo
A181: MSP-HGNDC-2021-020-R-00001 | B181: CEFTRIAXONA | C181: Bien | D181: HOSPITAL GENERAL DR. NAPOLEON DÁVILA CÓRDOVA | E181: Manabí | F181: CORPORACION GREENMED S.A. | G181: 2220 | H181: 0.002219999908 | I181: Administración del Estado | J181: Salud | K181: Gobierno Central y sus EP | L181: Mayo
A182: MSP-HGNDC-2021-020-R-00001 | B182: CIPROFLOXACINA | C182: Bien | D182: HOSPITAL GENERAL DR. NAPOLEON DÁVILA CÓRDOVA | E182: Manabí | F182: CORPORACION GREENMED S.A. | G182: 1140 | H182: 0.001139999949 | I182: Administración del Estado | J182: Salud | K182: Gobierno Central y sus EP | L182: Mayo
A183: MSP-HGNDC-2021-020-R-00001 | B183: CLARITROMICINA | C183: Bien | D183: HOSPITAL GENERAL DR. NAPOLEON DÁVILA CÓRDOVA | E183: Manabí | F183: CORPORACION GREENMED S.A. | G183: 750 | H183: 0.0007500000065 | I183: Administración del Estado | J183: Salud | K183: Gobierno Central y sus EP | L183: Mayo
A184: MSP-HGNDC-2021-020-R-00001 | B184: CLOPIDOGREL | C184: Bien | D184: HOSPITAL GENERAL DR. NAPOLEON DÁVILA CÓRDOVA | E184: Manabí | F184: CORPORACION GREENMED S.A. | G184: 800 | H184: 0.0007999999798 | I184: Administración del Estado | J184: Salud | K184: Gobierno Central y sus EP | L184: Mayo
A185: MSP-HGNDC-2021-020-R-00001 | B185: CLORURO DE SODIO | C185: Bien | D185: HOSPITAL GENERAL DR. NAPOLEON DÁVILA CÓRDOVA | E185: Manabí | F185: CORPORACION GREENMED S.A. | G185: 10883.6 | H185: 0.01088360045 | I185: Administración del Estado | J185: Salud | K185: Gobierno Central y sus EP | L185: Mayo
A186: MSP-HGNDC-2021-020-R-00001 | B186: CLORURO POTASICO 14,9% 100 AMP. 5 ML. | C186: Bien | D186: HOSPITAL GENERAL DR. NAPOLEON DÁVILA CÓRDOVA | E186: Manabí | F186: CORPORACION GREENMED S.A. | G186: 200 | H186: 0.0001999999949 | I186: Administración del Estado | J186: Salud | K186: Gobierno Central y sus EP | L186: Mayo
A187: MSP-HGNDC-2021-020-R-00001 | B187: COMPLEJO B AMPOLLA X 10 ML | C187: Bien | D187: HOSPITAL GENERAL DR. NAPOLEON DÁVILA CÓRDOVA | E187: Manabí | F187: CORPORACION GREENMED S.A. | G187: 2100 | H187: 0.002099999925 | I187: Administración del Estado | J187: Salud | K187: Gobierno Central y sus EP | L187: Mayo
A188: MSP-HGNDC-2021-020-R-00001 | B188: DEXMEDETOMIDINA - LÍQUIDO PARENTERAL- 100 MCG/ML (0,1 MG/ML) | C188: Bien | D188: HOSPITAL GENERAL DR. NAPOLEON DÁVILA CÓRDOVA | E188: Manabí | F188: CORPORACION GREENMED S.A. | G188: 12000 | H188: 0.0120000001 | I188: Administración del Estado | J188: Salud | K188: Gobierno Central y sus EP | L188: Mayo
A189: MSP-HGNDC-2021-020-R-00001 | B189: DOPAMINA | C189: Bien | D189: HOSPITAL GENERAL DR. NAPOLEON DÁVILA CÓRDOVA | E189: Manabí | F189: CORPORACION GREENMED S.A. | G189: 3.28 | H189: 3.280000101e-06 | I189: Administración del Estado | J189: Salud | K189: Gobierno Central y sus EP | L189: Mayo
A190: MSP-HGNDC-2021-020-R-00001 | B190: EMULSIONES GRASAS (LÍPIDOS) | C190: Bien | D190: HOSPITAL GENERAL DR. NAPOLEON DÁVILA CÓRDOVA | E190: Manabí | F190: CORPORACION GREENMED S.A. | G190: 220 | H190: 0.0002200000017 | I190: Administración del Estado | J190: Salud | K190: Gobierno Central y sus EP | L190: Mayo
A191: MSP-HGNDC-2021-020-R-00001 | B191: ENALAPRIL | C191: Bien | D191: HOSPITAL GENERAL DR. NAPOLEON DÁVILA CÓRDOVA | E191: Manabí | F191: CORPORACION GREENMED S.A. | G191: 192 | H191: 0.0001920000068 | I191: Administración del Estado | J191: Salud | K191: Gobierno Central y sus EP | L191: Mayo
A192: MSP-HGNDC-2021-020-R-00001 | B192: ENOXAPARINA | C192: Bien | D192: HOSPITAL GENERAL DR. NAPOLEON DÁVILA CÓRDOVA | E192: Manabí | F192: CORPORACION GREENMED S.A. | G192: 16900 | H192: 0.01689999923 | I192: Administración del Estado | J192: Salud | K192: Gobierno Central y sus EP | L192: Mayo
A193: MSP-HGNDC-2021-020-R-00001 | B193: EPINEFRINA (ADRENALINA) | C193: Bien | D193: HOSPITAL GENERAL DR. NAPOLEON DÁVILA CÓRDOVA | E193: Manabí | F193: CORPORACION GREENMED S.A. | G193: 25.2 | H193: 2.520000089e-05 | I193: Administración del Estado | J193: Salud | K193: Gobierno Central y sus EP | L193: Mayo
A194: MSP-HGNDC-2021-020-R-00001 | B194: ERITROPOYETINA | C194: Bien | D194: HOSPITAL GENERAL DR. NAPOLEON DÁVILA CÓRDOVA | E194: Manabí | F194: CORPORACION GREENMED S.A. | G194: 890 | H194: 0.0008900000248 | I194: Administración del Estado | J194: Salud | K194: Gobierno Central y sus EP | L194: Mayo
A195: MSP-HGNDC-2021-020-R-00001 | B195: FENITOINA 50 MG/ML AMPOLLAS X 5 ML | C195: Bien | D195: HOSPITAL GENERAL DR. NAPOLEON DÁVILA CÓRDOVA | E195: Manabí | F195: CORPORACION GREENMED S.A. | G195: 183 | H195: 0.0001829999965 | I195: Administración del Estado | J195: Salud | K195: Gobierno Central y sus EP | L195: Mayo
A196: MSP-HGNDC-2021-020-R-00001 | B196: FITOMENADIONA | C196: Bien | D196: HOSPITAL GENERAL DR. NAPOLEON DÁVILA CÓRDOVA | E196: Manabí | F196: CORPORACION GREENMED S.A. | G196: 192 | H196: 0.0001920000068 | I196: Administración del Estado | J196: Salud | K196: Gobierno Central y sus EP | L196: Mayo
A197: MSP-HGNDC-2021-020-R-00001 | B197: GENTAMICINA | C197: Bien | D197: HOSPITAL GENERAL DR. NAPOLEON DÁVILA CÓRDOVA | E197: Manabí | F197: CORPORACION GREENMED S.A. | G197: 203.4 | H197: 0.0002034000063 | I197: Administración del Estado | J197: Salud | K197: Gobierno Central y sus EP | L197: Mayo
A198: MSP-HGNDC-2021-020-R-00001 | B198: HIDROCORTISONA | C198: Bien | D198: HOSPITAL GENERAL DR. NAPOLEON DÁVILA CÓRDOVA | E198: Manabí | F198: CORPORACION GREENMED S.A. | G198: 134 | H198: 0.0001340000017 | I198: Administración del Estado | J198: Salud | K198: Gobierno Central y sus EP | L198: Mayo
A199: MSP-HGNDC-2021-020-R-00001 | B199: IMIPENEM + CILASTATINA | C199: Bien | D199: HOSPITAL GENERAL DR. NAPOLEON DÁVILA CÓRDOVA | E199: Manabí | F199: CORPORACION GREENMED S.A. | G199: 712 | H199: 0.0007120000082 | I199: Administración del Estado | J199: Salud | K199: Gobierno Central y sus EP | L199: Mayo
A200: MSP-HGNDC-2021-020-R-00001 | B200: KETOROLACO | C200: Bien | D200: HOSPITAL GENERAL DR. NAPOLEON DÁVILA CÓRDOVA | E200: Manabí | F200: CORPORACION GREENMED S.A. | G200: 2850 | H200: 0.002850000048 | I200: Administración del Estado | J200: Salud | K200: Gobierno Central y sus EP | L200: Mayo
... 56 more rows

Sheet Dashboard
I1: OTROS PROCEDIMIENTOS - EMERGENCIAS Enero - mayo 20211 (millones de dólares)
A11: INDICADORES DE RESOLUCIONES Y CONTRATACIONES PUBLICADAS
A27: 1. NÚMERO DE RESOLUCIONES Y CONTRATACIONES PUBLICADAS Y NÚMERO DE ENTIDADES QUE PUBLICARON RESOLUCIONES Y CONTRATACIONES
AA28: ANALISIS POR MES | AF28: RANGOS | AJ28: SECTORIAL
AA29: Etiquetas de fila | AB29: Suma de Valor_adjudicado | AF29: Etiquetas de fila | AG29: Suma de Valor_adjudicado | AJ29: Etiquetas de fila | AK29: Suma de Valor_adjudicado millones | AM29: Etiquetas de fila | AN29: Suma de Valor_adjudicado | AP29: Suma de Valor_adjudicado millones
A30: Número de entidades que registraron resoluciones de emergencias y número de resoluciones de emergencia publicadas | H30: Número de entidades que registraron contrataciones y procesos de contratación publicados | AA30: Febrero | AB30: 12107171.57 | AF30: 0-3000000 | AG30: 8763372.849 | AJ30: Comercio Exterior Industrialización Pesca y Competitividad | AK30: 6.749320145e-05 | AM30: Febrero | AN30: 8.41943482e-05 | AP30: 1
AA31: Marzo | AB31: 12935061.97 | AF31: Total general | AG31: 8763372.849 | AJ31: Comunicaciones | AK31: 0.0007895364177 | AM31: Marzo | AN31: 0.009308290551
AA32: Abril | AB32: 3105311.76 | AJ32: Desarrollo Urbano y Vivienda | AK32: 0.001238616031 | AM32: Abril | AN32: 0.2856863882
AA33: Mayo | AB33: 2811128.582 | AJ33: Defensa Nacional | AK33: 0.001346714003 | AM33: Mayo | AN33: 0.3937799776
AA34: Total general | AB34: 30958673.88 | AJ34: Asuntos Internos | AK34: 0.004718706655 | AM34: Junio | AN34: 0.252157493
AJ35: Educación | AK35: 0.01008650785 | AM35: Julio | AN35: 0.05898365622
AJ36: Salud | AK36: 0.04936329367 | AM36: Total general | AN36: 1
AJ37: Recursos Naturales | AK37: 0.4052490034
AJ38: Régimen de GAD | AK38: 0.5271401287
AJ39: Total general | AK39: 1
AF40: SECTOR DE GOBIERNO
AF41: Etiquetas de fila | AG41: Suma de Valor_adjudicado
A42: 2. NÚMERO DE RESOLUCIONES Y CONTRATACIONES PUBLICADAS POR PROVINCIA DE LA ENTIDAD | AF42: Otros | AG42: 0.01183783254 | AM42: Suma de Valor_adjudicado millones
AF43: Sociedades Anónimas | AG43: 0.01183783254 | AM43: 1
C44: Número de resoluciones y contrataciones publicadas por provincia de la entidad | AF44: Gobierno Central y sus EP | AG44: 0.4597159432
AF45: Educación Superior | AG45: 0.008125348037
AF46: Administración del Estado | AG46: 0.05738987487
AF47: EP de la Función Ejecutiva | AG47: 0.3942007202
AA48: TIPO DE COMPRA | AF48: GAD y sus EP | AG48: 0.5284462243
AA49: Etiquetas de fila | AB49: Suma de Valor_adjudicado millones | AF49: GAD Parroquiales Rurales | AG49: 0.0004783976878
AA50: Consultoría | AB50: 0.005075996669 | AF50: EP de los GAD | AG50: 0.00130610924
AA51: Servicio | AB51: 0.04138262828 | AF51: GAD Municipales | AG51: 0.1388601148
AA52: Bien | AB52: 0.4763599578 | AF52: GAD Provinciales | AG52: 0.3878016025
AA53: Obra | AB53: 0.4771814173 | AF53: Total general | AG53: 1
AA54: Total general | AB54: 1
AF59: ENTIIDAD | AJ59: PROVEEDOR | AM59: CPC
AA60: ANALISIS POR TIPO DE CONTRATACIÓN | AF60: Etiquetas de fila | AG60: Suma de Valor_adjudicado | AJ60: Etiquetas de fila | AK60: Suma de Valor_adjudicado | AM60: Etiquetas de fila | AN60: Suma de Valor_adjudicado
AA61: Suma de Valor_adjudicado millones | AF61: MUNICIPIO DE PEDERNALES | AG61: 1562054.17 | AJ61: MEGA SANTAMARIA S.A. | AK61: 1317718.02 | AM61: CONSTRUCCION DE BOVEDAS | AN61: 82999.92
AA62: 1 | AF62: ILUSTRE MUNICIPALIDAD DE SANTA ELENA | AG62: 1631401.229 | AJ62: COSTASHUE S.A. | AK62: 1336000 | AM62: ASESORIA Y CAPACITACION EN SISTEMAS DE SEGURIDAD CIUDADANA Y EN ANTI TERRORISMO | AN62: 93524
AF63: HOSPITAL GENERAL MANTA | AG63: 1652302.775 | AJ63: GUACHO AMAYA ANA ALEXANDRA | AK63: 1358580 | AM63: SERVICIOS ESPECIALIZADOS DE CONSTRUCCION QUE OBLIGAN A SOLDAR Y DOBLAR ACERO PARA PROYECTOS DE CONSTRUCCION CON HORMIGON REFORZADO | AN63: 99771.11
AF64: HOSPITAL GENERAL-BABAHOYO | AG64: 2019879.66 | AJ64: JARAVITEX CIA LTDA | AK64: 1605825.52 | AM64: RETROEXCAVADORAS | AN64: 114000
AF65: GOBIERNO AUTONOMO DESCENTRALIZADO MUNICIPALIDAD DE AMBATO | AG65: 2062120.97 | AJ65: MEDILABOR S.A. | AK65: 1768894.8 | AM65: PROPOFOL - LÍQUIDO PARENTERAL- 10 MG/ML | AN65: 121144
AF66: COORDINACIÓN ZONAL 8 - SALUD | AG66: 2069808.989 | AJ66: CORPORACION FAVORITA C.A. | AK66: 1952333.845 | AM66: ROCURONIO, BROMURO - LÍQUIDO PARENTERAL- 10 MG/ML | AN66: 140000
A67: 3. NÚMERO DE RESOLUCIONES Y CONTRATACIONES PUBLICADAS POR SECTOR DE GOBIERNO | AA67: PROVINCIA | AF67: GOBIERNO AUTONOMO DESCENTRALIZADO DE LA PROVINCIA DE ESMERALDAS | AG67: 2152789.7 | AJ67: CAMPOSANTOS DEL ECUADOR S.A. CAMPOECUADOR | AK67: 1990078.989 | AM67: OXIGENO LIQUIDO | AN67: 147490
AA68: Etiquetas de fila | AB68: Valor Adjudicado | AF68: GOBIERNO AUTONOMO DESCENTRALIZADO ILUSTRE MUNICIPALIDAD DEL CANTON DAULE | AG68: 2436410.076 | AJ68: ROCHE ECUADOR S.A. | AK68: 2136590 | AM68: SERVICIOS DE DISENO DE INGENIERIA PARA OBRAS DE IRRIGACION | AN68: 157146.12
C69: Número de resoluciones y de contrataciones publicadas por sector de gobierno | AA69: Guayas | AB69: 24854732.9 | AF69: GOBIERNO AUTÓNOMO DESCENTRALIZADO DEL DISTRITO METROPOLITANO DE QUITO UNIDAD PATRONATO MUNICIPAL SAN JOSE | AG69: 2804361.04 | AJ69: SIMED S. A. | AK69: 2206658.32 | AM69: SERVICIOS GENERALES DE CONSTRUCCION EN CARRETERAS (EXCEPTO CARRETERAS SOBREELEVADAS), CAMINOS | AN69: 178496
AA70: Loja | AB70: 1246624.87 | AF70: HOSPITAL GENERAL - MILAGRO | AG70: 2861421.224 | AJ70: COMERCIALIZADORA NUTRI MED NUTRIMEDECUADOR S.A. | AK70: 2216407 | AM70: REACTIVOS PARA ANALISIS CELULAR | AN70: 193864.7
AA71: Manabí | AB71: 974682.87 | AF71: CONSEJO PROVINCIAL DE MANABÍ | AG71: 3084183.975 | AJ71: ARKITRUST S.A. | AK71: 2898328.15 | AM71: OTROS SERVICIOS DE OBRAS DE EXCAVACION Y MOVIMIENTO DE TIERRAS | AN71: 194337.1401
AA72: Santa Elena | AB72: 960884.66 | AF72: HOSPITAL GENERAL MACHALA | AG72: 3322145.46 | AJ72: ANDRADE LARA JAVIER ROBERTO | AK72: 3187964.22 | AM72: REACTIVOS COMPUESTOS PARA DIAGNOSTICO O LABORATORIO N.C.P.: SOBRE SOPORTE DE PAPEL O CARTON. | AN72: 218859.98
AA73: Imbabura | AB73: 823822.6601 | AF73: HOSPITAL GENERAL DEL NORTE DE GUAYAQUIL LOS CEIBOS | AG73: 3631560.05 | AJ73: APOLO APOLO JOSE GONZALO | AK73: 3239134.06 | AM73: TRACTORES DE ORUGA: TRACTORRES DE ORUGA CON CABRESTANTE, ETC. | AN73: 243000
AA74: Azuay | AB74: 668222.3171 | AF74: HOSPITAL DE ESPECIALIDADES - TEODORO MALDONADO CARBO | AG74: 3641199.03 | AJ74: CONSORCIO CEMENTERIO SUBURBIO | AK74: 3348252.56 | AM74: SERVICIO DE VIGILANCIA FISICA CON MEDIO HUMANO, CON ARMA | AN74: 251550
AA75: Pichincha | AB75: 534930.37 | AF75: HOSPITAL GENERAL GUASMO SUR | AG75: 4382965.466 | AJ75: SALUMED S.A. | AK75: 3860004 | AM75: EXCAVADORA DE ORUGAS | AN75: 337000
AA76: El Oro | AB76: 216020.12 | AF76: GOBIERNO PROVINCIAL DEL GUAYAS | AG76: 5606002.29 | AJ76: CONSORCIO CASUARINA | AK76: 4209650.9 | AM76: ALQUILER DE EQUIPO CAMINERO | AN76: 373367.44
AA77: Sucumbíos | AB77: 214452.87 | AF77: GOBIERNO AUTONOMO DESCENTRALIZADO DEL DISTRITO METROPOLITANO DE QUITO | AG77: 8158802.998 | AJ77: MILENIO LIMPIEZA Y MANTENIMIENTO S.A. MILIMAN | AK77: 4709260.5 | AM77: INSUMOS DE USO GENERAL | AN77: 394564.82
AA78: Tungurahua | AB78: 108609.34 | AF78: GUAYAQUIL SIGLO XXI, FUNDACIÓN MUNICIPAL PARA LA REGENERACIÓN URBANA | AG78: 8933224.02 | AJ78: CHICAIZA ALVARADO PEDRO GIOVANNY | AK78: 5409732.415 | AM78: OTRAS OBRAS DE INGENIERIA CIVIL | AN78: 2923351.2
AA79: Cañar | AB79: 100995.9815 | AF79: MUNICIPALIDAD DE GUAYAQUIL | AG79: 17578346.64 | AJ79: SUMINISTROS MEDICOS MANOSALVAS VILLAGOMEZ MV ASOCIADOS CIA. LTDA. | AK79: 6435000 | AM79: SERVICIOS GENERALES DE CONSTRUCCION DE PUENTES, CARRETERAS ELEVADAS | AN79: 11411729.37
AA80: Carchi | AB80: 82999.92 | AF80: MINISTERIO DE SALUD PUBLICA MATRIZ | AG80: 41815775.4 | AJ80: MARTINEZ VELASQUEZ ISIDORO RICARDO | AK80: 9960000 | AM80: MAQUINAS-HERRAMIENTA DE TRABAJAR METALES, POLIVALENTES, ELECTRICAS | AN80: 12179488.54
AA81: Los Ríos | AB81: 61432.5 | AF81: Total general | AG81: 121406755.2 | AJ81: Total general | AK81: 65146413.3 | AM81: Total general | AN81: 29855684.34
AA82: Chimborazo | AB82: 48128.708
AA83: Esmeraldas | AB83: 24443
AA84: Morona Santiago | AB84: 23013
AA85: Zamora Chinchipe | AB85: 8261.65
AA86: Pastaza | AB86: 6416.14
AA87: Total general | AB87: 30958673.88
AM88: Entidades
A93: CIFRAS DE CONTRATACIONES
AF96: Suma de Valor_adjudicado
AF97: 202928110.6
AM99: Proveedores
AA100: CATALOGO
AA104: Suma de Valor_adjudicado
AA105: 8763372.849
A107: 1. PARTICIPACIÓN MENSUAL DE LA CONTRATACIÓN PÚBLICA2
B109: Composición mensual de la contratación pública | I109: Participación de Emergencias respecto a la compra pública total
I114: Valor Adjudicado
I115: 30.95867398
AA116: Suma de Valor_adjudicado
I117: Valor Adjudicado | J117: Resto de Procedimietnos | K117: Contratación Pública Total | AA117: 8763372.849 | AE117: =AB125 -> 105
I118: =I115 -> 30.95867398 | J118: =K118-I118 -> 1915.635691 | K118: 1946.594365
I120: Compra Pública Total | J120: Emergencias | K120: Resto Procedimientos | AE120: =AB128 -> 137
I121: =K118/$K$118 -> 1 | J121: =I118/$K$118 -> 0.01590401911 | K121: =J118/$K$118 -> 0.9840959809
AA124: Suma de Número de entidades que publicaron resoluciones_ | AB124: Suma de Número de resoluciones publicadas
AA125: 87 | AB125: 105 | AD125: =AA125 -> 87
A127: 3. CONTRATACIÓN PÚBLICA POR TIPO DE COMPRA | AA127: Suma de Número de entidades que registraron contrataciones | AB127: Suma de Número de contrataciones registradas
AA128: 44 | AB128: 137 | AD128: =AA128 -> 44
B129: Monto adjudicado por tipo de compra | H129: Participación del monto adjudicado por tipo de compra
B131: Tipo de compra | C131: Valor Adjudicado
B132: Obra | C132: 14.77290393
B133: Bien | C133: 14.74747263 | AA133: Etiquetas de fila | AB133: Número de resoluciones publicadas | AC133: Número de contrataciones registradas
B134: Servicio | C134: 1.281151297 | AA134: Azuay | AB134: 18 | AC134: 37
B135: Consultoría | C135: 0.157146126 | AA135: Manabí | AB135: 12 | AC135: 20
B136: Total | C136: 30.95867398 | AA136: Guayas | AB136: 12 | AC136: 14
AA137: Chimborazo | AB137: 8 | AC137: 11
AA138: Pichincha | AB138: 8 | AC138: 4
AA139: El Oro | AB139: 8 | AC139: 11
AA140: Loja | AB140: 8 | AC140: 10
AA141: Esmeraldas | AB141: 5 | AC141: 1
AA142: Morona Santiago | AB142: 4 | AC142: 3
A143: 5. CONTRATACIÓN PÚBLICA CON RESPECTO A LA PROVINCIA DE LA ENTIDAD CONTRATANTE | AA143: Cañar | AB143: 3 | AC143: 6
AA144: Napo | AB144: 3
B145: Participación de la contratación pública a nivel provincial | AA145: Santa Elena | AB145: 2 | AC145: 6
AA146: Tungurahua | AB146: 2 | AC146: 1
AA147: Sucumbíos | AB147: 2 | AC147: 2
AA148: Carchi | AB148: 2 | AC148: 1
AA149: Zamora Chinchipe | AB149: 2 | AC149: 2
AA150: Imbabura | AB150: 2 | AC150: 6
AA151: Los Ríos | AB151: 2 | AC151: 1
AA152: Bolívar | AB152: 1
AA153: Pastaza | AB153: 1 | AC153: 1
AA154: Total general | AB154: 105 | AC154: 137
AA162: Etiquetas de fila | AB162: Número de resoluciones publicadas | AC162: Número de contrataciones registradas
AA163: Otros | AB163: 4 | AC163: 24
AA164: Sociedades Anónimas | AB164: 4 | AC164: 24
AA165: Gobierno Central y sus EP | AB165: 20 | AC165: 31
AA166: Educación Superior | AB166: 1 | AC166: 1
AA167: EP de la Función Ejecutiva | AB167: 1 | AC167: 2
AA168: Seguridad Social | AB168: 1
AA169: Administración del Estado | AB169: 17 | AC169: 28
AA170: GAD y sus EP | AB170: 81 | AC170: 82
AA171: GAD Parroquiales Rurales | AB171: 6 | AC171: 10
A172: 6. PARTICIPACIÓN DE LA CONTRATACIÓN PÚBLICA POR SECTORES Y SECTORIALES DE GOBIERNO3 | AA172: GAD Provinciales | AB172: 7 | AC172: 7
AA173: EP de los GAD | AB173: 8 | AC173: 14
B174: Contratación pública por sectores de gobierno | I174: Participación de contratación pública por sectores de gobierno | AA174: GAD Municipales | AB174: 60 | AC174: 51
AA175: Total general | AB175: 105 | AC175: 137
B176: Sector de Gobierno Agrupado⁴ | C176: Sector de Gobierno | D176: Valor Adjudicado
B177: GAD y sus EP | C177: GAD Provinciales | D177: 12.00582378
C178: GAD Municipales | D178: 4.298925055
C179: EP de los GAD | D179: 0.04043540993
C180: GAD Parroquiales Rurales | D180: 0.01481055815
B181: Gobierno Central y sus EP | C181: EP de la Función Ejecutiva | D181: 12.20393118
C182: Administración del Estado | D182: 1.776714415
C183: Educación Superior | D183: 0.251549989
B184: Otros | C184: Sociedades Anónimas | D184: 0.3664835973
B185: Total | D185: 30.95867398
B192: Contratación pública por sectoriales de gobierno | I192: Participación de contratación pública por sectoriales de gobierno
B194: Sectorial de Gobierno | C194: Valor Adjudicado
B195: Régimen de GAD | C195: 16.31955939
B196: Recursos Naturales | C196: 12.54597178
B197: Salud | C197: 1.528222116
B198: Educación | C198: 0.3122649081
B199: Asuntos Internos | C199: 0.1460849009
B200: Defensa Nacional | C200: 0.04169247975
B201: Desarrollo Urbano y Vivienda | C201: 0.03834590991
B202: Comunicaciones | C202: 0.02444300056
B203: Comercio Exterior Industrialización Pesca y Competitividad | C203: 0.00208950002
B204: Total | C204: 30.95867398
A221: 7. RANKING DE LAS 20 MAYORES ENTIDADES CONTRATANTES Y 20 MAYORES PROVEEDORES
B223: Ranking de las 20 mayores entidades contratantes | H223: Ranking de los 20 mayores proveedores adjudicados5
B225: Entidad | C225: Valor Adjudicado | H225: Proveedor | I225: Valor Adjudicado
B226: EMPRESA ELÉCTRICA PÚBLICA ESTRATÉGICA CORPORACIÓN NACIONAL DE ELECTRICIDAD CNEL EP | C226: 12.17948818 | H226: ACRETI S.A. | I226: 12.17948818
B227: GOBIERNO PROVINCIAL DEL GUAYAS | C227: 11.41172981 | H227: INESTRUCSUR INGENIERIA DE ESTRUCTURAS DE SUR AMERICA S.A | I227: 11.41172981
B228: MUNICIPIO DE LOJA | C228: 1.246624883 | H228: IASA S.A. | I228: 0.6940000132 | L228: Valor Adjudicado
B229: GOBIERNO AUTONOMO DESCENTRALIZADO DE SAN MIGUEL DE IBARRA | C229: 0.8238226622 | H229: QUINTANA VILAC LUIS EDUARDO | I229: 0.3471529782 | L229: 30.95867398
B230: HOSPITAL GENERAL DR. LIBORIO PANCHANA SOTOMAYOR | C230: 0.7889396548 | D230: Valor Adjudicado | E230: Resto de Procedimietnos | H230: MEDICANTES S.A. | I230: 0.2520000041 | J230: Top 20 Proveedores | K230: Resto de Emergencias | L230: Total Emergencias
B231: GOBIERNO AUTONOMO DESCENTRALIZADO MUNICIPAL DEL CANTON NARANJAL GADMCN | C231: 0.6940000132 | D231: =AJ83 -> 0 | E231: =F236-D231 -> 30.95867398 | H231: CASTVISE CIA LTDA | I231: 0.251549989 | J231: =GETPIVOTDATA("Valor_adjudicado millones",Dashboard!$H$225) -> 27.65989022 | K231: =L231-J231 -> 3.298783766 | L231: =GETPIVOTDATA("Valor_adjudicado millones",$F$233) -> 30.95867398
B232: MUNICIPIO DE CHONE | C232: 0.5053838594 | H232: BLACIO AGUIRRE RICHARD HENRY | I232: 0.2366722673
B233: INSTITUTO NACIONAL DE INVESTIGACIÓN EN SALUD PUBLICA -INSPI- DR. LEOPOLDO IZQUIETA PÉREZ | C233: 0.4090289591 | F233: Valor Adjudicado | H233: BENAVIDES PEREZ DAVID ANDRES | I233: 0.2357862443 | J233: Top 20 Entidades | K233: Resto de Emergencias | L233: Total Emergencias
B234: ELECTRO GENERADORA DEL AUSTRO S.A. | C234: 0.3664835973 | F234: 30.95867398 | H234: PROAÑO FIERRO MARIA RITTA | I234: 0.1960249543 | J234: =J231/L231 -> 0.893445573 | K234: =K231/L231 -> 0.106554427 | L234: =J234+K234 -> 1
B235: GOBIERNO PROVINCIAL DE PICHINCHA | C235: 0.3471529782 | D235: Top 20 Entidades | E235: Resto de Emergencias | F235: Total Emergencias | H235: ARANDY LOPEZ DAVID ALEJANDRO | I235: 0.1943371445
B236: HOSPITAL GENERAL DR. NAPOLEON DÁVILA CÓRDOVA | C236: 0.3072405018 | D236: =GETPIVOTDATA("Valor_adjudicado millones",Dashboard!$B$225) -> 30.40217033 | E236: =F236-D236 -> 0.5565036587 | F236: =GETPIVOTDATA("Valor_adjudicado millones",$F$233) -> 30.95867398 | H236: JARAMILLO CASTILLO LUIS ENRIQUE | I236: 0.1914066672
B237: UNIVERSIDAD DE CUENCA | C237: 0.251549989 | H237: GUEVAZCO COMPAÑIA LIMITADA | I237: 0.1784960032
B238: GOBIERNO AUTONOMO DESCENTRALIZADO MUNICIPAL DE PUTUMAYO | C238: 0.2144528776 | D238: Top 20 Entidades | E238: Resto de Emergencias | F238: Total Emergencias | H238: CONSTRUCTORA ZUÑIGA CONZU CIA.LTDA. | I238: 0.1765242666
B239: GOBIERNO AUTONOMO DESCENTRALIZADO PROVINCIAL DE SANTA ELENA | C239: 0.1719450057 | D239: =D236/F236 -> 0.9820243057 | E239: =E236/F236 -> 0.01797569428 | F239: =D239+E239 -> 1 | H239: SAENZ RONQUILLO JOSE ANTONIO | I239: 0.1719450057
B240: SERVICIO NACIONAL DE ATENCIÓN INTEGRAL A PERSONAS ADULTAS PRIVADAS DE LA LIBERTAD Y A ADOLESCENTES INFRACTORES | C240: 0.1460849009 | H240: LINDE ECUADOR S.A. | I240: 0.1704499945
B241: GOBIERNO AUTONOMO DESCENTRALIZADO MUNICIPAL DE EL GUABO | C241: 0.1421428025 | H241: VILLA ADRIANO ROSA INES | I241: 0.1647737324
B242: GOBIERNO AUTONOMO DESCENTRALIZADO MUNICIPAL DEL CANTON CEVALLOS | C242: 0.1086093411 | H242: CONSTRUFISCA S.A. | I242: 0.157146126
B243: GOBIERNO AUTONOMO DESCENTRALIZADO MUNICIPAL DEL CANTON SUCRE | C243: 0.10471927 | H243: BIOMOL ECUADOR CIA. LTDA. | I243: 0.1557418257
B244: MUNICIPIO DEL CANTÓN EL EMPALME | C244: 0.0997711122 | H244: SOCIEDAD CIVIL R&H CONSTRUCCIONES | I244: 0.1510647833
B245: GOBIERNO AUTONOMO DESCENTRALIZADO MUNICIPAL DE MONTUFAR | C245: 0.08299992234 | H245: MEDICA ECUADOR EQUIPOS E INSUMOS MEDICOS MEDECU C.A. | I245: 0.1436002233
B246: Total | C246: 30.40217033 | H246: Total | I246: 27.65989022
A249: 8. CLASIFICACIÓN NACIONAL CENTRAL DE PRODUCTOS (CPC) (TOP 20)
C251: Ranking de los 20 mayores CPC adjudicados
A281: Notas: 1. Datos provisionales 2. Fuente: SERCOP - SOCE. El monto adjudicado no considera procesos identificados como duplicados, desiertos, gestionados en años anteriores, donde no se hicieron contrataciones y donde se dejaron las resoluciones insubsistentes. Excluye proceso 030-CG-2019-00014 cuya resolución de emergencia no consta dentro del período de análisis. 3. Clasificación según Catálogo de Instituciones y Entidades Operativas Desconcentradas del Sector Público del Ministerio de Economía y Finanzas. 4. Gobierno Central incluye los siguientes sectores: Administración del Estado, Entidades de Educación Superior, Entidades de Seguridad Social y Empresas Públicas de la Función Ejecutiva; GAD y sus EP contiene GAD Municipales, Provinciales y Parroquiales Rurales y sus Empresas Públicas; Otras entidades incluye Sociedades Anónimas con participación pública, Entidades Financieras Públicas y Otros. 5. Incluye información de proveedores que hacen a la vez de entidades. Además, en casos donde adjudicó un consorcio el nombre que registra es del procurador 6.Información corresponde a procesos publicados y gestionados en el período enero-mayo 2021 7.No se registran contrataciones publicadas y gestionadas en enero de 2021.
K290: #ComprasPúblicasTransparentes
